{"text_format":"1","workbook":"xlsx","n_sheets":7,"sheets":["Edges","Vertices","Do Not Delete","Groups","Group Vertices","Overall Metrics","Misc"],"not_rendered":{"charts":9,"images":0,"macros":0,"external_links":0,"defined_names":14,"comments":5,"pivot_tables":0},"unopened":[],"bounds":{"document_bytes":16777216,"sheet_cells":100000,"rows_first":2000,"rows_last":500,"rows_between":2000,"halvings":0,"cell_chars":16384,"cell_head_chars":4096},"cells_cut":0,"cells_raw":0,"read":"whole","date_system":"1900"}

{"sheet":"Edges","index":0,"n_rows":316,"n_cols":15,"rows_kept":316,"cut":false,"hidden":false,"merged":[]}
[null,null,"Visual Properties",null,null,null,null,"Label",null,null,"Do Not Edit",null,"Other Columns"]
["Vertex 1","Vertex 2","Color","Width","Style","Opacity","Visibility","Label","Label Text Color","Label Font Size","ID","Dynamic Filter","Add Your Own Columns Here","Relationship","Relationship Date (UTC)"]
["youcosm","oamprimo",null,null,null,null,null,null,null,null,null,null,null,"Mentions","2011-01-05T08:17:19"]
["arcticpenguin","j_myers",null,null,null,null,null,null,null,null,null,null,null,"Mentions","2011-01-08T08:07:10"]
["unfriendstudy","clifflampe",null,null,null,null,null,null,null,null,null,null,null,"Mentions","2011-01-09T18:15:38"]
["jester_david","kywohn",null,null,null,null,null,null,null,null,null,null,null,"Followed","2011-01-10T03:03:27"]
["shpantzer","zrlram",null,null,null,null,null,null,null,null,null,null,null,"Mentions","2011-01-05T02:56:25"]
["shpantzer","zrlram",null,null,null,null,null,null,null,null,null,null,null,"Followed","2011-01-10T03:03:27"]
["shpantzer","krowney",null,null,null,null,null,null,null,null,null,null,null,"Followed","2011-01-10T03:03:27"]
["krowney","shpantzer",null,null,null,null,null,null,null,null,null,null,null,"Followed","2011-01-10T03:03:27"]
["krowney","zrlram",null,null,null,null,null,null,null,null,null,null,null,"Followed","2011-01-10T03:03:27"]
["youcosm","bis100atcurtin",null,null,null,null,null,null,null,null,null,null,null,"Followed","2011-01-10T03:03:27"]
["joonhyuk","kywohn",null,null,null,null,null,null,null,null,null,null,null,"Mentions","2011-01-05T14:20:53"]
["joonhyuk","kywohn",null,null,null,null,null,null,null,null,null,null,null,"Replies to","2011-01-05T14:20:53"]
["joonhyuk","kywohn",null,null,null,null,null,null,null,null,null,null,null,"Followed","2011-01-10T03:03:27"]
["metaannelies","netsciwestpoint",null,null,null,null,null,null,null,null,null,null,null,"Mentions","2011-01-05T16:44:04"]
["metaannelies","netsciwestpoint",null,null,null,null,null,null,null,null,null,null,null,"Followed","2011-01-10T03:03:27"]
["thefuuma","youcosm",null,null,null,null,null,null,null,null,null,null,null,"Mentions","2011-01-04T20:09:48"]
["thefuuma","youcosm",null,null,null,null,null,null,null,null,null,null,null,"Replies to","2011-01-04T20:09:48"]
["thefuuma","chandlerism",null,null,null,null,null,null,null,null,null,null,null,"Followed","2011-01-10T03:03:27"]
["thefuuma","youcosm",null,null,null,null,null,null,null,null,null,null,null,"Followed","2011-01-10T03:03:27"]
["youcosm","thefuuma",null,null,null,null,null,null,null,null,null,null,null,"Followed","2011-01-10T03:03:27"]
["chandlerism","thefuuma",null,null,null,null,null,null,null,null,null,null,null,"Followed","2011-01-10T03:03:27"]
["profkane","stevenljohnson",null,null,null,null,null,null,null,null,null,null,null,"Mentions","2011-01-06T19:15:13"]
["profkane","chandlerism",null,null,null,null,null,null,null,null,null,null,null,"Mentions","2011-01-06T19:15:13"]
["profkane","chandlerism",null,null,null,null,null,null,null,null,null,null,null,"Replies to","2011-01-06T19:15:13"]
["stevenljohnson","profkane",null,null,null,null,null,null,null,null,null,null,null,"Followed","2011-01-10T03:03:27"]
["profkane","stevenljohnson",null,null,null,null,null,null,null,null,null,null,null,"Followed","2011-01-10T03:03:27"]
["profkane","chandlerism",null,null,null,null,null,null,null,null,null,null,null,"Followed","2011-01-10T03:03:27"]
["chandlerism","profkane",null,null,null,null,null,null,null,null,null,null,null,"Followed","2011-01-10T03:03:27"]
["isaacmi","clifflampe",null,null,null,null,null,null,null,null,null,null,null,"Mentions","2011-01-07T00:17:04"]
["isaacmi","clifflampe",null,null,null,null,null,null,null,null,null,null,null,"Followed","2011-01-10T03:03:27"]
["neilhair","vicperotti",null,null,null,null,null,null,null,null,null,null,null,"Mentions","2011-01-06T19:44:22"]
["neilhair","vicperotti",null,null,null,null,null,null,null,null,null,null,null,"Followed","2011-01-10T03:03:27"]
["vicperotti","neilhair",null,null,null,null,null,null,null,null,null,null,null,"Followed","2011-01-10T03:03:27"]
["vicperotti","shakmatt",null,null,null,null,null,null,null,null,null,null,null,"Mentions","2011-01-07T02:40:04"]
["vicperotti","avantgame",null,null,null,null,null,null,null,null,null,null,null,"Followed","2011-01-10T03:03:27"]
["vicperotti","juiramaprasad",null,null,null,null,null,null,null,null,null,null,null,"Followed","2011-01-10T03:03:27"]
["crslade","aacurtis",null,null,null,null,null,null,null,null,null,null,null,"Followed","2011-01-10T03:03:27"]
["aacurtis","crslade",null,null,null,null,null,null,null,null,null,null,null,"Followed","2011-01-10T03:03:27"]
["chandlerism","aacurtis",null,null,null,null,null,null,null,null,null,null,null,"Followed","2011-01-10T03:03:27"]
["aacurtis","chandlerism",null,null,null,null,null,null,null,null,null,null,null,"Followed","2011-01-10T03:03:27"]
["johannabragge","marc_smith",null,null,null,null,null,null,null,null,null,null,null,"Mentions","2011-01-07T13:55:14"]
["chandlerism","johannabragge",null,null,null,null,null,null,null,null,null,null,null,"Followed","2011-01-10T03:03:27"]
["johannabragge","chandlerism",null,null,null,null,null,null,null,null,null,null,null,"Followed","2011-01-10T03:03:27"]
["johannabragge","marc_smith",null,null,null,null,null,null,null,null,null,null,null,"Followed","2011-01-10T03:03:27"]
["anitablanchard","clifflampe",null,null,null,null,null,null,null,null,null,null,null,"Mentions","2011-01-07T19:06:56"]
["marc_smith","anitablanchard",null,null,null,null,null,null,null,null,null,null,null,"Followed","2011-01-10T03:03:27"]
["anitablanchard","nicole_ellison",null,null,null,null,null,null,null,null,null,null,null,"Followed","2011-01-10T03:03:27"]
["anitablanchard","barrywellman",null,null,null,null,null,null,null,null,null,null,null,"Followed","2011-01-10T03:03:27"]
["anitablanchard","clifflampe",null,null,null,null,null,null,null,null,null,null,null,"Followed","2011-01-10T03:03:27"]
["anitablanchard","marc_smith",null,null,null,null,null,null,null,null,null,null,null,"Followed","2011-01-10T03:03:27"]
["anitablanchard","mysocnet",null,null,null,null,null,null,null,null,null,null,null,"Followed","2011-01-10T03:03:27"]
["mantruc","arcticpenguin",null,null,null,null,null,null,null,null,null,null,null,"Mentions","2011-01-07T02:43:48"]
["mantruc","jvitak",null,null,null,null,null,null,null,null,null,null,null,"Mentions","2011-01-07T02:43:48"]
["mantruc","barrywellman",null,null,null,null,null,null,null,null,null,null,null,"Followed","2011-01-10T03:03:27"]
["mantruc","joinson",null,null,null,null,null,null,null,null,null,null,null,"Followed","2011-01-10T03:03:27"]
["mantruc","nicole_ellison",null,null,null,null,null,null,null,null,null,null,null,"Followed","2011-01-10T03:03:27"]
["mantruc","clifflampe",null,null,null,null,null,null,null,null,null,null,null,"Followed","2011-01-10T03:03:27"]
["mantruc","mysocnet",null,null,null,null,null,null,null,null,null,null,null,"Followed","2011-01-10T03:03:27"]
["mantruc","jvitak",null,null,null,null,null,null,null,null,null,null,null,"Followed","2011-01-10T03:03:27"]
["mantruc","andreawiggins",null,null,null,null,null,null,null,null,null,null,null,"Followed","2011-01-10T03:03:27"]
["nicole_ellison","mantruc",null,null,null,null,null,null,null,null,null,null,null,"Followed","2011-01-10T03:03:27"]
["jvitak","mantruc",null,null,null,null,null,null,null,null,null,null,null,"Followed","2011-01-10T03:03:27"]
["andreawiggins","mantruc",null,null,null,null,null,null,null,null,null,null,null,"Followed","2011-01-10T03:03:27"]
["clifflampe","mantruc",null,null,null,null,null,null,null,null,null,null,null,"Followed","2011-01-10T03:03:27"]
["joinson","mantruc",null,null,null,null,null,null,null,null,null,null,null,"Followed","2011-01-10T03:03:27"]
["saddolls","rmason",null,null,null,null,null,null,null,null,null,null,null,"Mentions","2011-01-07T23:12:58"]
["saddolls","rmason",null,null,null,null,null,null,null,null,null,null,null,"Followed","2011-01-10T03:03:27"]
["counterpunkt","dalprof",null,null,null,null,null,null,null,null,null,null,null,"Mentions","2011-01-08T01:13:17"]
["counterpunkt","barrywellman",null,null,null,null,null,null,null,null,null,null,null,"Followed","2011-01-10T03:03:27"]
["counterpunkt","marc_smith",null,null,null,null,null,null,null,null,null,null,null,"Followed","2011-01-10T03:03:27"]
["alan_wolf","dmrussell",null,null,null,null,null,null,null,null,null,null,null,"Mentions","2011-01-08T01:48:29"]
["alan_wolf","dmrussell",null,null,null,null,null,null,null,null,null,null,null,"Followed","2011-01-10T03:03:27"]
["trancekr","natpoor",null,null,null,null,null,null,null,null,null,null,null,"Mentions","2011-01-07T21:59:26"]
["trancekr","jvitak",null,null,null,null,null,null,null,null,null,null,null,"Mentions","2011-01-07T21:59:26"]
["trancekr","arcticpenguin",null,null,null,null,null,null,null,null,null,null,null,"Mentions","2011-01-07T21:59:26"]
["trancekr","arcticpenguin",null,null,null,null,null,null,null,null,null,null,null,"Followed","2011-01-10T03:03:27"]
["arcticpenguin","trancekr",null,null,null,null,null,null,null,null,null,null,null,"Followed","2011-01-10T03:03:27"]
["kywohn","arcticpenguin",null,null,null,null,null,null,null,null,null,null,null,"Followed","2011-01-10T03:03:27"]
["arcticpenguin","kywohn",null,null,null,null,null,null,null,null,null,null,null,"Followed","2011-01-10T03:03:27"]
["adruin","dmrussell",null,null,null,null,null,null,null,null,null,null,null,"Mentions","2011-01-08T14:45:20"]
["marc_smith","dmrussell",null,null,null,null,null,null,null,null,null,null,null,"Followed","2011-01-10T03:03:27"]
["shakmatt","dmrussell",null,null,null,null,null,null,null,null,null,null,null,"Followed","2011-01-10T03:03:27"]
["dmrussell","marc_smith",null,null,null,null,null,null,null,null,null,null,null,"Followed","2011-01-10T03:03:27"]
["adruin","dmrussell",null,null,null,null,null,null,null,null,null,null,null,"Followed","2011-01-10T03:03:27"]
["shakmatt","adruin",null,null,null,null,null,null,null,null,null,null,null,"Followed","2011-01-10T03:03:27"]
["adruin","shakmatt",null,null,null,null,null,null,null,null,null,null,null,"Followed","2011-01-10T03:03:27"]
["dleach","sottedreviewer",null,null,null,null,null,null,null,null,null,null,null,"Mentions","2011-01-08T19:24:46"]
["dleach","clifflampe",null,null,null,null,null,null,null,null,null,null,null,"Followed","2011-01-10T03:03:27"]
["stevenljohnson","shen045",null,null,null,null,null,null,null,null,null,null,null,"Mentions","2011-01-06T00:40:55"]
["stevenljohnson","chandlerism",null,null,null,null,null,null,null,null,null,null,null,"Mentions","2011-01-06T00:40:55"]
["stevenljohnson","clifflampe",null,null,null,null,null,null,null,null,null,null,null,"Followed","2011-01-10T03:03:27"]
["stevenljohnson","barrywellman",null,null,null,null,null,null,null,null,null,null,null,"Followed","2011-01-10T03:03:27"]
["stevenljohnson","marc_smith",null,null,null,null,null,null,null,null,null,null,null,"Followed","2011-01-10T03:03:27"]
["stevenljohnson","chandlerism",null,null,null,null,null,null,null,null,null,null,null,"Followed","2011-01-10T03:03:27"]
["chandlerism","stevenljohnson",null,null,null,null,null,null,null,null,null,null,null,"Followed","2011-01-10T03:03:27"]
["clifflampe","stevenljohnson",null,null,null,null,null,null,null,null,null,null,null,"Followed","2011-01-10T03:03:27"]
["nitya","stevenljohnson",null,null,null,null,null,null,null,null,null,null,null,"Followed","2011-01-10T03:03:27"]
["nitya","dingstweets",null,null,null,null,null,null,null,null,null,null,null,"Mentions","2011-01-08T19:56:47"]
["nitya","marc_smith",null,null,null,null,null,null,null,null,null,null,null,"Followed","2011-01-10T03:03:27"]
["nitya","nicole_ellison",null,null,null,null,null,null,null,null,null,null,null,"Followed","2011-01-10T03:03:27"]
["nitya","clifflampe",null,null,null,null,null,null,null,null,null,null,null,"Followed","2011-01-10T03:03:27"]
["nitya","avantgame",null,null,null,null,null,null,null,null,null,null,null,"Followed","2011-01-10T03:03:27"]
["nitya","dingstweets",null,null,null,null,null,null,null,null,null,null,null,"Followed","2011-01-10T03:03:27"]
["nitya","sogamestudies",null,null,null,null,null,null,null,null,null,null,null,"Followed","2011-01-10T03:03:27"]
["nitya","arcticpenguin",null,null,null,null,null,null,null,null,null,null,null,"Followed","2011-01-10T03:03:27"]
["andreyz","avantgame",null,null,null,null,null,null,null,null,null,null,null,"Followed","2011-01-10T03:03:27"]
["andreyz","mfcrawford",null,null,null,null,null,null,null,null,null,null,null,"Followed","2011-01-10T03:03:27"]
["andreyz","dingstweets",null,null,null,null,null,null,null,null,null,null,null,"Followed","2011-01-10T03:03:27"]
["barrywellman","netsciwestpoint",null,null,null,null,null,null,null,null,null,null,null,"Followed","2011-01-10T03:03:27"]
["shakmatt","andreawiggins",null,null,null,null,null,null,null,null,null,null,null,"Followed","2011-01-10T03:03:27"]
["andreawiggins","derrickcogburn",null,null,null,null,null,null,null,null,null,null,null,"Followed","2011-01-10T03:03:27"]
["andreawiggins","staeiou",null,null,null,null,null,null,null,null,null,null,null,"Followed","2011-01-10T03:03:27"]
["andreawiggins","clifflampe",null,null,null,null,null,null,null,null,null,null,null,"Followed","2011-01-10T03:03:27"]
["andreawiggins","nicole_ellison",null,null,null,null,null,null,null,null,null,null,null,"Followed","2011-01-10T03:03:27"]
["andreawiggins","sottedreviewer",null,null,null,null,null,null,null,null,null,null,null,"Followed","2011-01-10T03:03:27"]
["andreawiggins","dalprof",null,null,null,null,null,null,null,null,null,null,null,"Followed","2011-01-10T03:03:27"]
["andreawiggins","natpoor",null,null,null,null,null,null,null,null,null,null,null,"Followed","2011-01-10T03:03:27"]
["andreawiggins","arcticpenguin",null,null,null,null,null,null,null,null,null,null,null,"Followed","2011-01-10T03:03:27"]
["clifflampe","andreawiggins",null,null,null,null,null,null,null,null,null,null,null,"Followed","2011-01-10T03:03:27"]
["natpoor","andreawiggins",null,null,null,null,null,null,null,null,null,null,null,"Followed","2011-01-10T03:03:27"]
["staeiou","andreawiggins",null,null,null,null,null,null,null,null,null,null,null,"Followed","2011-01-10T03:03:27"]
["jvitak","staeiou",null,null,null,null,null,null,null,null,null,null,null,"Followed","2011-01-10T03:03:27"]
["clifflampe","staeiou",null,null,null,null,null,null,null,null,null,null,null,"Followed","2011-01-10T03:03:27"]
["staeiou","clifflampe",null,null,null,null,null,null,null,null,null,null,null,"Followed","2011-01-10T03:03:27"]
["staeiou","jvitak",null,null,null,null,null,null,null,null,null,null,null,"Followed","2011-01-10T03:03:27"]
["staeiou","sottedreviewer",null,null,null,null,null,null,null,null,null,null,null,"Followed","2011-01-10T03:03:27"]
["marc_smith","rmason",null,null,null,null,null,null,null,null,null,null,null,"Followed","2011-01-10T03:03:27"]
["rmason","karineb",null,null,null,null,null,null,null,null,null,null,null,"Followed","2011-01-10T03:03:27"]
["barrywellman","rmason",null,null,null,null,null,null,null,null,null,null,null,"Followed","2011-01-10T03:03:27"]
["karineb","rmason",null,null,null,null,null,null,null,null,null,null,null,"Followed","2011-01-10T03:03:27"]
["grandhyattkauai","derrickcogburn",null,null,null,null,null,null,null,null,null,null,null,"Mentions","2011-01-04T21:52:02"]
["chandlerism","derrickcogburn",null,null,null,null,null,null,null,null,null,null,null,"Followed","2011-01-10T03:03:27"]
["paulmbaker","derrickcogburn",null,null,null,null,null,null,null,null,null,null,null,"Followed","2011-01-10T03:03:27"]
["marc_smith","derrickcogburn",null,null,null,null,null,null,null,null,null,null,null,"Followed","2011-01-10T03:03:27"]
["shakmatt","derrickcogburn",null,null,null,null,null,null,null,null,null,null,null,"Followed","2011-01-10T03:03:27"]
["jvitak","derrickcogburn",null,null,null,null,null,null,null,null,null,null,null,"Followed","2011-01-10T03:03:27"]
["derrickcogburn","barrywellman",null,null,null,null,null,null,null,null,null,null,null,"Followed","2011-01-10T03:03:27"]
["derrickcogburn","clifflampe",null,null,null,null,null,null,null,null,null,null,null,"Followed","2011-01-10T03:03:27"]
["derrickcogburn","chandlerism",null,null,null,null,null,null,null,null,null,null,null,"Followed","2011-01-10T03:03:27"]
["derrickcogburn","karineb",null,null,null,null,null,null,null,null,null,null,null,"Followed","2011-01-10T03:03:27"]
["derrickcogburn","paulmbaker",null,null,null,null,null,null,null,null,null,null,null,"Followed","2011-01-10T03:03:27"]
["derrickcogburn","shakmatt",null,null,null,null,null,null,null,null,null,null,null,"Followed","2011-01-10T03:03:27"]
["derrickcogburn","nicole_ellison",null,null,null,null,null,null,null,null,null,null,null,"Followed","2011-01-10T03:03:27"]
["derrickcogburn","natpoor",null,null,null,null,null,null,null,null,null,null,null,"Followed","2011-01-10T03:03:27"]
["derrickcogburn","sottedreviewer",null,null,null,null,null,null,null,null,null,null,null,"Followed","2011-01-10T03:03:27"]
["clifflampe","derrickcogburn",null,null,null,null,null,null,null,null,null,null,null,"Followed","2011-01-10T03:03:27"]
["natpoor","derrickcogburn",null,null,null,null,null,null,null,null,null,null,null,"Followed","2011-01-10T03:03:27"]
["karineb","derrickcogburn",null,null,null,null,null,null,null,null,null,null,null,"Followed","2011-01-10T03:03:27"]
["paulmbaker","arcticpenguin",null,null,null,null,null,null,null,null,null,null,null,"Mentions","2011-01-07T01:17:53"]
["paulmbaker","jvitak",null,null,null,null,null,null,null,null,null,null,null,"Mentions","2011-01-07T01:17:53"]
["paulmbaker","clifflampe",null,null,null,null,null,null,null,null,null,null,null,"Mentions","2011-01-07T01:17:53"]
["paulmbaker","clifflampe",null,null,null,null,null,null,null,null,null,null,null,"Replies to","2011-01-07T01:17:53"]
["paulmbaker","karineb",null,null,null,null,null,null,null,null,null,null,null,"Followed","2011-01-10T03:03:27"]
["paulmbaker","barrywellman",null,null,null,null,null,null,null,null,null,null,null,"Followed","2011-01-10T03:03:27"]
["paulmbaker","mysocnet",null,null,null,null,null,null,null,null,null,null,null,"Followed","2011-01-10T03:03:27"]
["paulmbaker","dingstweets",null,null,null,null,null,null,null,null,null,null,null,"Followed","2011-01-10T03:03:27"]
["paulmbaker","marc_smith",null,null,null,null,null,null,null,null,null,null,null,"Followed","2011-01-10T03:03:27"]
["paulmbaker","nicole_ellison",null,null,null,null,null,null,null,null,null,null,null,"Followed","2011-01-10T03:03:27"]
["paulmbaker","clifflampe",null,null,null,null,null,null,null,null,null,null,null,"Followed","2011-01-10T03:03:27"]
["paulmbaker","jvitak",null,null,null,null,null,null,null,null,null,null,null,"Followed","2011-01-10T03:03:27"]
["marc_smith","paulmbaker",null,null,null,null,null,null,null,null,null,null,null,"Followed","2011-01-10T03:03:27"]
["karineb","paulmbaker",null,null,null,null,null,null,null,null,null,null,null,"Followed","2011-01-10T03:03:27"]
["jvitak","natpoor",null,null,null,null,null,null,null,null,null,null,null,"Mentions","2011-01-07T19:04:24"]
["jvitak","natpoor",null,null,null,null,null,null,null,null,null,null,null,"Replies to","2011-01-07T19:04:24"]
["shakmatt","jvitak",null,null,null,null,null,null,null,null,null,null,null,"Followed","2011-01-10T03:03:27"]
["nicole_ellison","jvitak",null,null,null,null,null,null,null,null,null,null,null,"Followed","2011-01-10T03:03:27"]
["jvitak","mysocnet",null,null,null,null,null,null,null,null,null,null,null,"Followed","2011-01-10T03:03:27"]
["jvitak","joinson",null,null,null,null,null,null,null,null,null,null,null,"Followed","2011-01-10T03:03:27"]
["jvitak","nicole_ellison",null,null,null,null,null,null,null,null,null,null,null,"Followed","2011-01-10T03:03:27"]
["jvitak","marc_smith",null,null,null,null,null,null,null,null,null,null,null,"Followed","2011-01-10T03:03:27"]
["jvitak","clifflampe",null,null,null,null,null,null,null,null,null,null,null,"Followed","2011-01-10T03:03:27"]
["jvitak","barrywellman",null,null,null,null,null,null,null,null,null,null,null,"Followed","2011-01-10T03:03:27"]
["jvitak","arcticpenguin",null,null,null,null,null,null,null,null,null,null,null,"Followed","2011-01-10T03:03:27"]
["jvitak","karineb",null,null,null,null,null,null,null,null,null,null,null,"Followed","2011-01-10T03:03:27"]
["jvitak","shakmatt",null,null,null,null,null,null,null,null,null,null,null,"Followed","2011-01-10T03:03:27"]
["jvitak","natpoor",null,null,null,null,null,null,null,null,null,null,null,"Followed","2011-01-10T03:03:27"]
["jvitak","sottedreviewer",null,null,null,null,null,null,null,null,null,null,null,"Followed","2011-01-10T03:03:27"]
["clifflampe","jvitak",null,null,null,null,null,null,null,null,null,null,null,"Followed","2011-01-10T03:03:27"]
["joinson","jvitak",null,null,null,null,null,null,null,null,null,null,null,"Followed","2011-01-10T03:03:27"]
["arcticpenguin","jvitak",null,null,null,null,null,null,null,null,null,null,null,"Followed","2011-01-10T03:03:27"]
["barrywellman","jvitak",null,null,null,null,null,null,null,null,null,null,null,"Followed","2011-01-10T03:03:27"]
["natpoor","jvitak",null,null,null,null,null,null,null,null,null,null,null,"Followed","2011-01-10T03:03:27"]
["karineb","jvitak",null,null,null,null,null,null,null,null,null,null,null,"Followed","2011-01-10T03:03:27"]
["marc_smith","shakmatt",null,null,null,null,null,null,null,null,null,null,null,"Mentions","2011-01-07T04:20:22"]
["marc_smith","shakmatt",null,null,null,null,null,null,null,null,null,null,null,"Followed","2011-01-10T03:03:27"]
["shakmatt","marc_smith",null,null,null,null,null,null,null,null,null,null,null,"Followed","2011-01-10T03:03:27"]
["shakmatt","clifflampe",null,null,null,null,null,null,null,null,null,null,null,"Followed","2011-01-10T03:03:27"]
["shakmatt","barrywellman",null,null,null,null,null,null,null,null,null,null,null,"Followed","2011-01-10T03:03:27"]
["shakmatt","mysocnet",null,null,null,null,null,null,null,null,null,null,null,"Followed","2011-01-10T03:03:27"]
["shakmatt","nicole_ellison",null,null,null,null,null,null,null,null,null,null,null,"Followed","2011-01-10T03:03:27"]
["shakmatt","sottedreviewer",null,null,null,null,null,null,null,null,null,null,null,"Followed","2011-01-10T03:03:27"]
["nicole_ellison","shakmatt",null,null,null,null,null,null,null,null,null,null,null,"Followed","2011-01-10T03:03:27"]
["clifflampe","shakmatt",null,null,null,null,null,null,null,null,null,null,null,"Followed","2011-01-10T03:03:27"]
["arcticpenguin","shakmatt",null,null,null,null,null,null,null,null,null,null,null,"Followed","2011-01-10T03:03:27"]
["natpoor","shakmatt",null,null,null,null,null,null,null,null,null,null,null,"Followed","2011-01-10T03:03:27"]
["karineb","shakmatt",null,null,null,null,null,null,null,null,null,null,null,"Followed","2011-01-10T03:03:27"]
["chandlerism","karineb",null,null,null,null,null,null,null,null,null,null,null,"Followed","2011-01-10T03:03:27"]
["marc_smith","karineb",null,null,null,null,null,null,null,null,null,null,null,"Followed","2011-01-10T03:03:27"]
["barrywellman","karineb",null,null,null,null,null,null,null,null,null,null,null,"Followed","2011-01-10T03:03:27"]
["karineb","marc_smith",null,null,null,null,null,null,null,null,null,null,null,"Followed","2011-01-10T03:03:27"]
["karineb","barrywellman",null,null,null,null,null,null,null,null,null,null,null,"Followed","2011-01-10T03:03:27"]
["karineb","chandlerism",null,null,null,null,null,null,null,null,null,null,null,"Followed","2011-01-10T03:03:27"]
["karineb","mysocnet",null,null,null,null,null,null,null,null,null,null,null,"Followed","2011-01-10T03:03:27"]
["karineb","dalprof",null,null,null,null,null,null,null,null,null,null,null,"Followed","2011-01-10T03:03:27"]
["karineb","clifflampe",null,null,null,null,null,null,null,null,null,null,null,"Followed","2011-01-10T03:03:27"]
["shangz","dlmcguinness",null,null,null,null,null,null,null,null,null,null,null,"Mentions","2011-01-04T22:38:30"]
["shangz","dlmcguinness",null,null,null,null,null,null,null,null,null,null,null,"Followed","2011-01-10T03:03:27"]
["dlmcguinness","shangz",null,null,null,null,null,null,null,null,null,null,null,"Followed","2011-01-10T03:03:27"]
["grandhyattkauai","shen045",null,null,null,null,null,null,null,null,null,null,null,"Followed","2011-01-10T03:03:27"]
["dlmcguinness","grandhyattkauai",null,null,null,null,null,null,null,null,null,null,null,"Followed","2011-01-10T03:03:27"]
["mfcrawford","avantgame",null,null,null,null,null,null,null,null,null,null,null,"Mentions","2011-01-08T22:05:17"]
["avantgame","mfcrawford",null,null,null,null,null,null,null,null,null,null,null,"Followed","2011-01-10T03:03:27"]
["mfcrawford","avantgame",null,null,null,null,null,null,null,null,null,null,null,"Followed","2011-01-10T03:03:27"]
["mfcrawford","dingstweets",null,null,null,null,null,null,null,null,null,null,null,"Followed","2011-01-10T03:03:27"]
["dingstweets","mfcrawford",null,null,null,null,null,null,null,null,null,null,null,"Followed","2011-01-10T03:03:27"]
["avantgame","dingstweets",null,null,null,null,null,null,null,null,null,null,null,"Followed","2011-01-10T03:03:27"]
["dingstweets","barrywellman",null,null,null,null,null,null,null,null,null,null,null,"Followed","2011-01-10T03:03:27"]
["dingstweets","avantgame",null,null,null,null,null,null,null,null,null,null,null,"Followed","2011-01-10T03:03:27"]
["dingstweets","sogamestudies",null,null,null,null,null,null,null,null,null,null,null,"Followed","2011-01-10T03:03:27"]
["sogamestudies","dingstweets",null,null,null,null,null,null,null,null,null,null,null,"Followed","2011-01-10T03:03:27"]
["pewology","sogamestudies",null,null,null,null,null,null,null,null,null,null,null,"Mentions","2011-01-09T09:07:58"]
["arcticpenguin","sogamestudies",null,null,null,null,null,null,null,null,null,null,null,"Followed","2011-01-10T03:03:27"]
["pewology","sogamestudies",null,null,null,null,null,null,null,null,null,null,null,"Followed","2011-01-10T03:03:27"]
["agneseh","nicole_ellison",null,null,null,null,null,null,null,null,null,null,null,"Mentions","2011-01-09T18:32:12"]
["nicole_ellison","agneseh",null,null,null,null,null,null,null,null,null,null,null,"Followed","2011-01-10T03:03:27"]
["agneseh","nicole_ellison",null,null,null,null,null,null,null,null,null,null,null,"Followed","2011-01-10T03:03:27"]
["bkuz001","shen045",null,null,null,null,null,null,null,null,null,null,null,"Mentions","2011-01-05T20:19:48"]
["bkuz001","shen045",null,null,null,null,null,null,null,null,null,null,null,"Followed","2011-01-10T03:03:27"]
["shen045","bkuz001",null,null,null,null,null,null,null,null,null,null,null,"Followed","2011-01-10T03:03:27"]
["clifflampe","sottedreviewer",null,null,null,null,null,null,null,null,null,null,null,"Followed","2011-01-10T03:03:27"]
["arcticpenguin","sottedreviewer",null,null,null,null,null,null,null,null,null,null,null,"Followed","2011-01-10T03:03:27"]
["natpoor","sottedreviewer",null,null,null,null,null,null,null,null,null,null,null,"Followed","2011-01-10T03:03:27"]
["shen045","sottedreviewer",null,null,null,null,null,null,null,null,null,null,null,"Followed","2011-01-10T03:03:27"]
["nicole_ellison","joinson",null,null,null,null,null,null,null,null,null,null,null,"Followed","2011-01-10T03:03:27"]
["clifflampe","joinson",null,null,null,null,null,null,null,null,null,null,null,"Followed","2011-01-10T03:03:27"]
["joinson","nicole_ellison",null,null,null,null,null,null,null,null,null,null,null,"Followed","2011-01-10T03:03:27"]
["joinson","clifflampe",null,null,null,null,null,null,null,null,null,null,null,"Followed","2011-01-10T03:03:27"]
["joinson","barrywellman",null,null,null,null,null,null,null,null,null,null,null,"Followed","2011-01-10T03:03:27"]
["shen045","joinson",null,null,null,null,null,null,null,null,null,null,null,"Followed","2011-01-10T03:03:27"]
["chandlerism","natpoor",null,null,null,null,null,null,null,null,null,null,null,"Followed","2011-01-10T03:03:27"]
["nicole_ellison","natpoor",null,null,null,null,null,null,null,null,null,null,null,"Followed","2011-01-10T03:03:27"]
["arcticpenguin","natpoor",null,null,null,null,null,null,null,null,null,null,null,"Followed","2011-01-10T03:03:27"]
["natpoor","clifflampe",null,null,null,null,null,null,null,null,null,null,null,"Followed","2011-01-10T03:03:27"]
["natpoor","nicole_ellison",null,null,null,null,null,null,null,null,null,null,null,"Followed","2011-01-10T03:03:27"]
["natpoor","mysocnet",null,null,null,null,null,null,null,null,null,null,null,"Followed","2011-01-10T03:03:27"]
["natpoor","arcticpenguin",null,null,null,null,null,null,null,null,null,null,null,"Followed","2011-01-10T03:03:27"]
["natpoor","barrywellman",null,null,null,null,null,null,null,null,null,null,null,"Followed","2011-01-10T03:03:27"]
["natpoor","chandlerism",null,null,null,null,null,null,null,null,null,null,null,"Followed","2011-01-10T03:03:27"]
["natpoor","shen045",null,null,null,null,null,null,null,null,null,null,null,"Followed","2011-01-10T03:03:27"]
["shen045","natpoor",null,null,null,null,null,null,null,null,null,null,null,"Followed","2011-01-10T03:03:27"]
["arcticpenguin","shen045",null,null,null,null,null,null,null,null,null,null,null,"Mentions","2011-01-08T08:07:10"]
["shen045","dalprof",null,null,null,null,null,null,null,null,null,null,null,"Mentions","2011-01-09T20:02:08"]
["shen045","clifflampe",null,null,null,null,null,null,null,null,null,null,null,"Followed","2011-01-10T03:03:27"]
["shen045","nicole_ellison",null,null,null,null,null,null,null,null,null,null,null,"Followed","2011-01-10T03:03:27"]
["shen045","dalprof",null,null,null,null,null,null,null,null,null,null,null,"Followed","2011-01-10T03:03:27"]
["marc_smith","barrywellman",null,null,null,null,null,null,null,null,null,null,null,"Followed","2011-01-10T03:03:27"]
["nicole_ellison","barrywellman",null,null,null,null,null,null,null,null,null,null,null,"Followed","2011-01-10T03:03:27"]
["mysocnet","barrywellman",null,null,null,null,null,null,null,null,null,null,null,"Followed","2011-01-10T03:03:27"]
["clifflampe","barrywellman",null,null,null,null,null,null,null,null,null,null,null,"Followed","2011-01-10T03:03:27"]
["barrywellman","marc_smith",null,null,null,null,null,null,null,null,null,null,null,"Followed","2011-01-10T03:03:27"]
["barrywellman","mysocnet",null,null,null,null,null,null,null,null,null,null,null,"Followed","2011-01-10T03:03:27"]
["barrywellman","clifflampe",null,null,null,null,null,null,null,null,null,null,null,"Followed","2011-01-10T03:03:27"]
["barrywellman","nicole_ellison",null,null,null,null,null,null,null,null,null,null,null,"Followed","2011-01-10T03:03:27"]
["barrywellman","dalprof",null,null,null,null,null,null,null,null,null,null,null,"Followed","2011-01-10T03:03:27"]
["dalprof","barrywellman",null,null,null,null,null,null,null,null,null,null,null,"Followed","2011-01-10T03:03:27"]
["marc_smith","mysocnet",null,null,null,null,null,null,null,null,null,null,null,"Followed","2011-01-10T03:03:27"]
["marc_smith","clifflampe",null,null,null,null,null,null,null,null,null,null,null,"Followed","2011-01-10T03:03:27"]
["marc_smith","nicole_ellison",null,null,null,null,null,null,null,null,null,null,null,"Followed","2011-01-10T03:03:27"]
["marc_smith","dalprof",null,null,null,null,null,null,null,null,null,null,null,"Followed","2011-01-10T03:03:27"]
["nicole_ellison","marc_smith",null,null,null,null,null,null,null,null,null,null,null,"Followed","2011-01-10T03:03:27"]
["mysocnet","marc_smith",null,null,null,null,null,null,null,null,null,null,null,"Followed","2011-01-10T03:03:27"]
["clifflampe","marc_smith",null,null,null,null,null,null,null,null,null,null,null,"Followed","2011-01-10T03:03:27"]
["dalprof","marc_smith",null,null,null,null,null,null,null,null,null,null,null,"Followed","2011-01-10T03:03:27"]
["mysocnet","clifflampe",null,null,null,null,null,null,null,null,null,null,null,"Followed","2011-01-10T03:03:27"]
["mysocnet","nicole_ellison",null,null,null,null,null,null,null,null,null,null,null,"Followed","2011-01-10T03:03:27"]
["clifflampe","mysocnet",null,null,null,null,null,null,null,null,null,null,null,"Followed","2011-01-10T03:03:27"]
["arcticpenguin","mysocnet",null,null,null,null,null,null,null,null,null,null,null,"Followed","2011-01-10T03:03:27"]
["dalprof","mysocnet",null,null,null,null,null,null,null,null,null,null,null,"Followed","2011-01-10T03:03:27"]
["simulanten","graham_horton",null,null,null,null,null,null,null,null,null,null,null,"Followed","2011-01-10T03:03:27"]
["graham_horton","simulanten",null,null,null,null,null,null,null,null,null,null,null,"Followed","2011-01-10T03:03:27"]
["deptofhighfives","dalprof",null,null,null,null,null,null,null,null,null,null,null,"Mentions","2011-01-09T21:09:53"]
["paulmcenany","deptofhighfives",null,null,null,null,null,null,null,null,null,null,null,"Mentions","2011-01-09T21:13:01"]
["deptofhighfives","paulmcenany",null,null,null,null,null,null,null,null,null,null,null,"Followed","2011-01-10T03:03:27"]
["paulmcenany","deptofhighfives",null,null,null,null,null,null,null,null,null,null,null,"Followed","2011-01-10T03:03:27"]
["lmpeet","dalprof",null,null,null,null,null,null,null,null,null,null,null,"Mentions","2011-01-09T22:12:37"]
["dalprof","lmpeet",null,null,null,null,null,null,null,null,null,null,null,"Followed","2011-01-10T03:03:27"]
["lmpeet","dalprof",null,null,null,null,null,null,null,null,null,null,null,"Followed","2011-01-10T03:03:27"]
["klaula","dalprof",null,null,null,null,null,null,null,null,null,null,null,"Mentions","2011-01-09T22:27:56"]
["dalprof","klaula",null,null,null,null,null,null,null,null,null,null,null,"Followed","2011-01-10T03:03:27"]
["klaula","dalprof",null,null,null,null,null,null,null,null,null,null,null,"Followed","2011-01-10T03:03:27"]
["furrystoat","researchblogs",null,null,null,null,null,null,null,null,null,null,null,"Mentions","2011-01-09T23:12:50"]
["furrystoat","researchblogs",null,null,null,null,null,null,null,null,null,null,null,"Followed","2011-01-10T03:03:27"]
["arcticpenguin","avantgame",null,null,null,null,null,null,null,null,null,null,null,"Followed","2011-01-10T03:03:27"]
["thecatandthekey","avantgame",null,null,null,null,null,null,null,null,null,null,null,"Followed","2011-01-10T03:03:27"]
["thecatandthekey","researchblogs",null,null,null,null,null,null,null,null,null,null,null,"Mentions","2011-01-09T23:28:14"]
["thecatandthekey","researchblogs",null,null,null,null,null,null,null,null,null,null,null,"Followed","2011-01-10T03:03:27"]
["youcosm","chandlerism",null,null,null,null,null,null,null,null,null,null,null,"Followed","2011-01-10T03:03:27"]
["chandlerism","juiramaprasad",null,null,null,null,null,null,null,null,null,null,null,"Followed","2011-01-10T03:03:27"]
["chandlerism","youcosm",null,null,null,null,null,null,null,null,null,null,null,"Followed","2011-01-10T03:03:27"]
["chandlerism","arcticpenguin",null,null,null,null,null,null,null,null,null,null,null,"Followed","2011-01-10T03:03:27"]
["juiramaprasad","chandlerism",null,null,null,null,null,null,null,null,null,null,null,"Followed","2011-01-10T03:03:27"]
["youcosm","juiramaprasad",null,null,null,null,null,null,null,null,null,null,null,"Followed","2011-01-10T03:03:27"]
["youcosm","arcticpenguin",null,null,null,null,null,null,null,null,null,null,null,"Followed","2011-01-10T03:03:27"]
["juiramaprasad","youcosm",null,null,null,null,null,null,null,null,null,null,null,"Followed","2011-01-10T03:03:27"]
["nicole_ellison","clifflampe",null,null,null,null,null,null,null,null,null,null,null,"Followed","2011-01-10T03:03:27"]
["nicole_ellison","arcticpenguin",null,null,null,null,null,null,null,null,null,null,null,"Followed","2011-01-10T03:03:27"]
["clifflampe","nicole_ellison",null,null,null,null,null,null,null,null,null,null,null,"Followed","2011-01-10T03:03:27"]
["juiramaprasad","nicole_ellison",null,null,null,null,null,null,null,null,null,null,null,"Followed","2011-01-10T03:03:27"]
["clifflampe","arcticpenguin",null,null,null,null,null,null,null,null,null,null,null,"Followed","2011-01-10T03:03:27"]
["arcticpenguin","clifflampe",null,null,null,null,null,null,null,null,null,null,null,"Followed","2011-01-10T03:03:27"]
["juiramaprasad","clifflampe",null,null,null,null,null,null,null,null,null,null,null,"Followed","2011-01-10T03:03:27"]
["juiramaprasad","arcticpenguin",null,null,null,null,null,null,null,null,null,null,null,"Followed","2011-01-10T03:03:27"]
["canibaisereis","researchblogs",null,null,null,null,null,null,null,null,null,null,null,"Mentions","2011-01-10T00:10:10"]
["canibaisereis","researchblogs",null,null,null,null,null,null,null,null,null,null,null,"Followed","2011-01-10T03:03:27"]

{"sheet":"Vertices","index":1,"n_rows":94,"n_cols":42,"rows_kept":94,"cut":false,"hidden":false,"merged":[]}
[null,"Graph Metrics",null,null,null,null,null,null,null,"Visual Properties",null,null,null,null,null,"Labels",null,null,null,"Layout",null,null,null,null,null,"Do Not Edit",null,"Other Columns"]
["Vertex","Degree","In-Degree","Out-Degree","Betweenness Centrality","Closeness Centrality","Eigenvector Centrality","PageRank","Clustering Coefficient","Color","Shape","Size","Opacity","Image File","Visibility","Label","Label Fill Color","Label Position","Tooltip","Layout Order","X","Y","Locked?","Polar R","Polar Angle","ID","Dynamic Filter","Add Your Own Columns Here","Followed","Followers","Tweets","Favorites","Description","Time Zone","Time Zone UTC Offset (Seconds)","Joined Twitter Date (UTC)","Custom Menu Item Text","Custom Menu Item Action","Tweet","Tweet Date (UTC)","Latitude","Longitude"]
["youcosm",null,null,null,null,null,null,null,null,null,null,null,null,"http://a0.twimg.com/profile_images/1206850004/Paper_Airplanes_normal.jpg",null,null,null,null,null,null,null,null,null,null,null,null,null,null,13,11,10,0,"Learning on the Edge of Social Media. HICSS44 Symposium with JSB, Jui, Jim, Jen and Steven. ",null,null,"2010-08-16T05:02:51","Open Twitter Page for This Person","http://twitter.com/youcosm","RT @oamprimo Interesting conversation on the impact of social media in Education. Web 2.0 seems as disruptive as in the Business. #hicss","2011-01-05T08:17:19"]
["oamprimo",null,null,null,null,null,null,null,null,null,null,null,null,"http://a1.twimg.com/profile_images/998422569/1_normal.jpg",null,null,null,null,null,null,null,null,null,null,null,null,null,null,300,242,472,0,"http://sg.linkedin.com/in/olivieramprimo","Singapore",28800,"2008-05-15T09:19:18","Open Twitter Page for This Person","http://twitter.com/oamprimo","Interesting conversation on the impact of social media in Education. Web 2.0 seems as disruptive as in the Business. #hicss","2011-01-05T00:47:50"]
["arcticpenguin",null,null,null,null,null,null,null,null,null,null,null,null,"http://a1.twimg.com/profile_images/112931256/penguin-chick_normal.jpg",null,null,null,null,null,null,null,null,null,null,null,null,null,null,68,106,507,6,"Dreamer of digital dreams","Eastern Time (US & Canada)",-18000,"2008-05-21T17:53:13","Open Twitter Page for This Person","http://twitter.com/arcticpenguin","I wonder how many \"free\" Mai-Tai's are included in the $600+ registration fee @shen045 @j_myers #HICSS","2011-01-08T08:07:10"]
["j_myers",null,null,null,null,null,null,null,null,null,null,null,null,"http://a0.twimg.com/profile_images/386911437/n141301232_31107727_9646_normal.jpg",null,null,null,null,null,null,null,null,null,null,null,null,null,null,38,60,983,3,null,"Eastern Time (US & Canada)",-18000,"2008-08-20T23:44:05","Open Twitter Page for This Person","http://twitter.com/j_myers","Headed home after a long, fun day. Had a great time at #HICSS and all around Kauai. A hui hou, Hawaii! #fb","2011-01-09T07:39:59"]
["unfriendstudy",null,null,null,null,null,null,null,null,null,null,null,null,"http://a2.twimg.com/profile_images/835507535/P1050304-1_normal.JPG",null,null,null,null,null,null,null,null,null,null,null,null,null,null,5,95,9945,0,"Information Systems PhD Student. University of Colorado Denver.",null,null,"2010-03-30T04:34:52","Open Twitter Page for This Person","http://twitter.com/unfriendstudy","RT @clifflampe: #HICSS Sibona talk on Facebook unfriending behavior is good stuff.  Nicely done and well-presented!","2011-01-09T18:15:38"]
["clifflampe",null,null,null,null,null,null,null,null,null,null,null,null,"http://a0.twimg.com/profile_images/281164020/039_31742_Bill-Murray-Posters_normal.jpg",null,null,null,null,null,null,null,null,null,null,null,null,null,null,220,536,633,0,null,"Quito",-18000,"2007-09-18T21:24:38","Open Twitter Page for This Person","http://twitter.com/clifflampe","#HICSS Sibona talk on Facebook unfriending behavior is good stuff.  Nicely done and well-presented!","2011-01-07T20:47:32"]
["jester_david",null,null,null,null,null,null,null,null,null,null,null,null,"http://a0.twimg.com/profile_images/1176857885/image_normal.jpg",null,null,null,null,null,null,null,null,null,null,null,null,null,null,369,214,723,0,"SSHS,KAIST,researcher,Behavioral MIS,ServiceScience,HCI,Knowledge Based Service Industry,gourmet","Seoul",32400,"2009-08-03T01:57:32","Open Twitter Page for This Person","http://twitter.com/jester_david","내년에는 가리다“@kywohn: HICSS (Hawaii Intl Conf System Sciences) 참석중. 사회과학이 IT를 만나 영역 확장을 하는 현장. 디지털경제, 클라우드 컴퓨팅, 소셜미디어, 시큐리티, 전자정부, 디지털커뮤니케이션\"","2011-01-05T01:03:24"]
["kywohn",null,null,null,null,null,null,null,null,null,null,null,null,"http://a1.twimg.com/profile_images/631880262/20030529-part_normal.jpg",null,null,null,null,null,null,null,null,null,null,null,null,null,null,3,221,202,4,"Professor at KAIST.\r\nDean, Grad School of Culture Technology","Seoul",32400,"2009-02-14T17:48:18","Open Twitter Page for This Person","http://twitter.com/kywohn","HICSS (Hawaii Intl Conf System Sciences) 참석중. 사회과학이 IT를 만나 영역 확장을 하는 현장. 디지털경제, 클라우드 컴퓨팅, 소셜미디어, 시큐리티, 전자정부, 디지털커뮤니케이션 등이 주요 영역.","2011-01-04T22:49:46"]
["shpantzer",null,null,null,null,null,null,null,null,null,null,null,null,"http://a0.twimg.com/profile_images/564641485/IMG_0543_normal.jpg",null,null,null,null,null,null,null,null,null,null,null,null,null,null,1772,1743,9706,1825,"Information security and risk management consultant.  Strong project manager with interdisciplinary skillset to solve complex business and technical problems.","Eastern Time (US & Canada)",-18000,"2009-02-23T13:02:10","Open Twitter Page for This Person","http://twitter.com/shpantzer","Congrats! RT @zrlram: At HICSS conference presenting insider threat visualization paper tomorrow. My first academically published paper!","2011-01-05T02:56:25"]
["zrlram",null,null,null,null,null,null,null,null,null,null,null,null,"http://a1.twimg.com/profile_images/1167922221/_MG_5370_cropped_normal.jpg",null,null,null,null,null,null,null,null,null,null,null,null,null,null,495,992,1314,0,"I have a passion for data visualization. I founded Loggly (http://loggly.com), a Logging as a Service company.","Pacific Time (US & Canada)",-28800,"2008-02-23T03:18:57","Open Twitter Page for This Person","http://twitter.com/zrlram","At HICSS conference presenting insider threat visualization paper tomorrow. My first academically published paper!","2011-01-05T02:52:33"]
["krowney",null,null,null,null,null,null,null,null,null,null,null,null,"http://a2.twimg.com/profile_images/279164176/Rowney_family_Christmas_normal.JPG",null,null,null,null,null,null,null,null,null,null,null,null,null,null,315,239,635,1,"Husband, Father, and San Franciscan.  Infosec professional, founder of Vontu (now part of Symantec).","Pacific Time (US & Canada)",-28800,"2007-10-29T01:09:53","Open Twitter Page for This Person","http://twitter.com/krowney","“@zrlram: At HICSS conference presenting insider threat visualization paper tomorrow. My first academically published paper!” < Link?","2011-01-05T03:42:04"]
["bis100atcurtin",null,null,null,null,null,null,null,null,null,null,null,null,"http://a2.twimg.com/a/1292975674/images/default_profile_2_normal.png",null,null,null,null,null,null,null,null,null,null,null,null,null,null,0,12,28,0,null,"Alaska",-32400,"2009-06-25T14:49:16","Open Twitter Page for This Person","http://twitter.com/bis100atcurtin","My presentation at HICSS 44 on our paper on ERP, SecondLife, and teaching very well received.","2011-01-05T22:40:59"]
["joonhyuk",null,null,null,null,null,null,null,null,null,null,null,null,"http://a1.twimg.com/profile_images/257357434/88630007_normal.JPG",null,null,null,null,null,null,null,null,null,null,null,null,null,null,125,230,279,2,"Communicator at BGBG, PhD Researcher at KAIST GSCT","Seoul",32400,"2009-03-25T02:23:52","Open Twitter Page for This Person","http://twitter.com/joonhyuk","@kywohn 원교수님. 전 2009년에 HICSS 갔었습니다! 그 땐 Big Island 였는데, 올핸 어딘지 모르겠네요. 좋은 시간 보내고 오십시오^^","2011-01-05T14:20:53"]
["metaannelies",null,null,null,null,null,null,null,null,null,null,null,null,"http://a2.twimg.com/profile_images/1102061107/P8210009_normal.JPG",null,null,null,null,null,null,null,null,null,null,null,null,null,null,101,78,1552,46,"See the world with new eyes: /transcending time and space/all is connected. [So much for haiku. This is stuff that interests me: IR/SNA/$/science/culture/etc]","Central Time (US & Canada)",-21600,"2009-11-23T20:28:08","Open Twitter Page for This Person","http://twitter.com/metaannelies","RT @NetSciWestPoint: Paper presented by Network Science Center researchers 2LT Lospinoso and Satchell at the HICSS conference in Hawaii:\n http://ow.ly/3yKNI","2011-01-05T16:44:04"]
["netsciwestpoint",null,null,null,null,null,null,null,null,null,null,null,null,"http://a2.twimg.com/profile_images/377204730/compressed_logo_nsc_normal.jpg",null,null,null,null,null,null,null,null,null,null,null,null,null,null,13,66,96,0,"An inherently interdisciplinary Research Center studying the nature of networks across all aspects of life: biological, physical, and social. ","Quito",-18000,"2009-03-24T21:24:38","Open Twitter Page for This Person","http://twitter.com/netsciwestpoint","Paper presented by Network Science Center researchers 2LT Lospinoso and Satchell at the HICSS conference in Hawaii:\n http://ow.ly/3yKNI","2011-01-05T16:37:43"]
["thefuuma",null,null,null,null,null,null,null,null,null,null,null,null,"http://a1.twimg.com/profile_images/655251472/untitled_normal.jpg",null,null,null,null,null,null,null,null,null,null,null,null,null,null,17,11,453,0,null,"Pacific Time (US & Canada)",-28800,"2008-06-19T20:17:33","Open Twitter Page for This Person","http://twitter.com/thefuuma","@youcosm Is using social media to teach Studio Arts or English Lit be as effective as using social media to teach business/M.I.S.? #HICSS","2011-01-04T20:09:48"]
["chandlerism",null,null,null,null,null,null,null,null,null,null,null,null,"http://a1.twimg.com/profile_images/1127006827/fall_080_normal.jpg",null,null,null,null,null,null,null,null,null,null,null,null,null,null,2001,1865,3559,662,"Girl in the world. Data or culture geek, but def not a foodie. Recovering adrenaline junkie. PhD + Professor at U of Hawaii. #sna #brand #distribution #strategy","Hawaii",-36000,"2008-12-01T08:40:20","Open Twitter Page for This Person","http://twitter.com/chandlerism","Nucelus, dendrites, photons, and terabytes... all in the same sentence - #HICSS keynote showing me the edges of my knowledge structure!","2011-01-06T23:31:14"]
["profkane",null,null,null,null,null,null,null,null,null,null,null,null,"http://a0.twimg.com/profile_images/63282572/JKFace_normal.JPG",null,null,null,null,null,null,null,null,null,null,null,null,null,null,122,449,880,45,"Asst. Professor of Information Systems at the Carroll School of Management, Boston College.  Studies social media and healthcare IT.","Eastern Time (US & Canada)",-18000,"2008-10-30T13:02:53","Open Twitter Page for This Person","http://twitter.com/profkane","@Chandlerism you're welcome, but I'm actually here at #HICSS, unlike that poser @stevenljohnson.  Haha, just kidding Steven","2011-01-06T19:15:13"]
["stevenljohnson",null,null,null,null,null,null,null,null,null,null,null,null,"http://a1.twimg.com/profile_images/61682835/shapeimage_2_normal.jpg",null,null,null,null,null,null,null,null,null,null,null,null,null,null,145,121,301,0,"Assistant Prof. at Temple U. researching online communities","Eastern Time (US & Canada)",-18000,"2008-10-10T19:19:41","Open Twitter Page for This Person","http://twitter.com/stevenljohnson","RT @Chandlerism: 20% of tweets mention a brand name. #HICSS RT @shen045:","2011-01-06T00:40:55"]
["isaacmi",null,null,null,null,null,null,null,null,null,null,null,null,"http://a1.twimg.com/profile_images/135769356/me_normal.jpg",null,null,null,null,null,null,null,null,null,null,null,null,null,null,475,338,605,2,"Web & Social Media Analyst at Victoria University, Melbourne. Passionate about web usability, travelling and Ugly Betty.","Greenland",-10800,"2008-01-20T09:12:25","Open Twitter Page for This Person","http://twitter.com/isaacmi","RT @clifflampe: #hicss \"If Facebook were a country...\" I would avoid the tourists.","2011-01-07T00:17:04"]
["neilhair",null,null,null,null,null,null,null,null,null,null,null,null,"http://a2.twimg.com/profile_images/408326242/Neil_Bio_Picture_normal.jpg",null,null,null,null,null,null,null,null,null,null,null,null,null,null,102,1076,1145,3,"Professor of marketing","Quito",-18000,"2008-04-27T16:02:12","Open Twitter Page for This Person","http://twitter.com/neilhair","Excellent and positive feedback from delegates on our @vicperotti paper #hicss lots of ideas.","2011-01-06T19:44:22"]
["vicperotti",null,null,null,null,null,null,null,null,null,null,null,null,"http://a1.twimg.com/profile_images/284076425/headshot_normal.jpg",null,null,null,null,null,null,null,null,null,null,null,null,null,null,177,399,870,4,"professor @RIT, consultant, tech-enthusiast and experimenter. Helping to represent end-users in next generation Internet design. Founded DigEnt community","Eastern Time (US & Canada)",-18000,"2007-03-20T13:24:59","Open Twitter Page for This Person","http://twitter.com/vicperotti","Agree. Very interesting work! RT @shakmatt: Great talk on social network games by msu crowd at #hicss","2011-01-07T02:40:04"]
["shakmatt",null,null,null,null,null,null,null,null,null,null,null,null,"http://a0.twimg.com/profile_images/1136933693/profile_2_normal.jpg",null,null,null,null,null,null,null,null,null,null,null,null,null,null,98,138,34,0,"Assistant Professor, University of Maryland's iSchool",null,null,"2009-02-13T14:53:17","Open Twitter Page for This Person","http://twitter.com/shakmatt","The results are in! See https://casci.umd.edu/HICSS_2011_EventGraph Will discuss tomorrow at 8:30am session #hcil #iUMD #HICSS","2011-01-07T08:57:01"]
["avantgame",null,null,null,null,null,null,null,null,null,null,null,null,"http://a0.twimg.com/profile_images/82594833/janemcgonigal_cookierolling_normal.jpg",null,null,null,null,null,null,null,null,null,null,null,null,null,null,283,12759,3827,16,"I make games, I play games. Watch my talk on Blissful Productivity http://vimeo.com/16227360 Get my book and come play with me at realityisbroken.org","Pacific Time (US & Canada)",-28800,"2007-01-22T18:05:41","Open Twitter Page for This Person","http://twitter.com/avantgame","@manojalpa interesting article on social interactions on FB & IRL, and perceived social support http://bit.ly/gyL6wM","2011-01-08T21:38:06"]
["juiramaprasad",null,null,null,null,null,null,null,null,null,null,null,null,"http://a2.twimg.com/profile_images/1127228373/juibeccabach_normal.JPG",null,null,null,null,null,null,null,null,null,null,null,null,null,null,221,214,959,7,"researcher of social media and digital goods; teacher of technology and business; lover of good music, good books and good people. ","Central Time (US & Canada)",-21600,"2009-12-28T13:09:16","Open Twitter Page for This Person","http://twitter.com/juiramaprasad","leaving hawaii. #hicss symposium went off well, got food poisoned, recovered (sorta), then went hiking. t-15 hours: flip flops -> boots. :(","2011-01-09T23:45:31"]
["crslade",null,null,null,null,null,null,null,null,null,null,null,null,"http://a0.twimg.com/profile_images/1145061844/Chris_normal.jpg",null,null,null,null,null,null,null,null,null,null,null,null,null,null,27,29,263,0,"Assistant Professor at BYUH","Hawaii",-36000,"2008-02-11T22:54:45","Open Twitter Page for This Person","http://twitter.com/crslade","Getting ready to give my first paper presentation at #HICSS. Missing my first day of classes.","2011-01-05T19:28:18"]
["aacurtis",null,null,null,null,null,null,null,null,null,null,null,null,"http://a0.twimg.com/profile_images/63840747/ASP_6536_normal.jpg",null,null,null,null,null,null,null,null,null,null,null,null,null,null,97,59,351,16,"Asst Professor Computer & Information Sciences","Hawaii",-36000,"2007-08-13T17:09:48","Open Twitter Page for This Person","http://twitter.com/aacurtis","@lsmarr Excellent presentation today at #HICSS.","2011-01-07T08:55:48"]
["johannabragge",null,null,null,null,null,null,null,null,null,null,null,null,"http://a3.twimg.com/profile_images/486431125/JohannaBraggeECIS2008_normal.jpg",null,null,null,null,null,null,null,null,null,null,null,null,null,null,532,735,2023,0,"Asst. Prof. of Information Systems Science at Aalto University School of Economics. Interested in e-collaboration, user-centred development & text mining.","Helsinki",7200,"2009-04-05T17:59:20","Open Twitter Page for This Person","http://twitter.com/johannabragge","RT @marc_smith: New SNA paper at HICSS 2011: EventGraphs: Charting Collections of Conference Connections: http://bit.ly/eJjEe4","2011-01-07T13:55:14"]
["marc_smith",null,null,null,null,null,null,null,null,null,null,null,null,"http://a1.twimg.com/profile_images/44313182/Marc_Smith_normal.png",null,null,null,null,null,null,null,null,null,null,null,null,null,null,788,1714,436,177,"Sociologist studying computer-mediated collective action at Connected Action Consulting Group. http://www.connectedaction.net","Pacific Time (US & Canada)",-28800,"2008-01-12T19:12:20","Open Twitter Page for This Person","http://twitter.com/marc_smith","RT @shakmatt: You have 3 hours to tweet with term hicss to show up in tomorrows eventgraph: http://bit.ly/gZDGPe #hcil","2011-01-07T04:20:22"]
["anitablanchard",null,null,null,null,null,null,null,null,null,null,null,null,"http://a3.twimg.com/profile_images/1181624259/AnitaIcon_normal.jpg",null,null,null,null,null,null,null,null,null,null,null,null,null,null,187,205,1922,4,"UNCC Psychology and Organization Science Professor, Mother, Charlottean.  I tweet about all 3 interests: in twitter as in life, my boundaries are fluid.","Eastern Time (US & Canada)",-18000,"2008-04-08T16:51:03","Open Twitter Page for This Person","http://twitter.com/anitablanchard","This actually makes me laugh! RT @clifflampe: Turns out #HICSS is not a Twitter-heavy conference.  Only *some* systems I guess.","2011-01-07T19:06:56"]
["nicole_ellison",null,null,null,null,null,null,null,null,null,null,null,null,"http://a2.twimg.com/profile_images/732235445/EllisonN_normal.jpg",null,null,null,null,null,null,null,null,null,null,null,null,null,null,145,365,133,0,"Asst Professor in the department of Telecommunication, Information Studies and Media at MSU. This is my public account. Friends can also follow me on nellison.",null,null,"2009-10-08T01:18:09","Open Twitter Page for This Person","http://twitter.com/nicole_ellison","$20/day hotel internet access uses wifi password \"free\"! psychological manipulation, wry irony or black humor? #hicss","2011-01-07T18:32:43"]
["barrywellman",null,null,null,null,null,null,null,null,null,null,null,null,"http://a0.twimg.com/profile_images/96372559/barry1_normal.jpg",null,null,null,null,null,null,null,null,null,null,null,null,null,null,252,1651,8732,1083,"connected lives = soc networks + personal internet + hi availability mobility = networked individualism","Eastern Time (US & Canada)",-18000,"2009-03-14T18:52:28","Open Twitter Page for This Person","http://twitter.com/barrywellman","#hicss Your luau seems so tryfe. Next time, @ sushicouture in #Toronto","2011-01-08T20:46:10"]
["mysocnet",null,null,null,null,null,null,null,null,null,null,null,null,"http://a1.twimg.com/profile_images/178610188/DSC_4310_normal.JPG",null,null,null,null,null,null,null,null,null,null,null,null,null,null,105,717,834,0,"Prof. at the Annenberg School for Communication, UPenn","Eastern Time (US & Canada)",-18000,"2008-09-05T18:41:25","Open Twitter Page for This Person","http://twitter.com/mysocnet","wishing I was at #HICSS, not having spent 2 hours waiting for school bus, then driving son to school in snow","2011-01-07T19:13:47"]
["mantruc",null,null,null,null,null,null,null,null,null,null,null,null,"http://a3.twimg.com/profile_images/1132762973/javier-icon-2010_normal.jpg",null,null,null,null,null,null,null,null,null,null,null,null,null,null,459,520,3233,311,"PhD student of Info Science at UNC: Self-disclosure in Social Media. \r\nIA/UX pioneer in Chile & Latin America since 2000.\r\nHubby to @pilonpala, dad of V.","Eastern Time (US & Canada)",-18000,"2008-03-29T14:46:28","Open Twitter Page for This Person","http://twitter.com/mantruc","RT @jvitak: #hicss @arcticpenguin identifies 3 outcomes of social network game use: initiating, maintaining, and enhancing relationships.","2011-01-07T02:43:48"]
["jvitak",null,null,null,null,null,null,null,null,null,null,null,null,"http://a2.twimg.com/profile_images/933383321/v_beer2_normal.jpg",null,null,null,null,null,null,null,null,null,null,null,null,null,null,123,84,144,0,"This is my public Twitter (private is @vitak). I'm a PhD student @ MSU. My research looks at the role online communication tools play in relational maintenance.","Eastern Time (US & Canada)",-18000,"2009-12-03T18:29:40","Open Twitter Page for This Person","http://twitter.com/jvitak","@natpoor If by \"everyone,\" you mean the Michigan contingent, then yes (not that anyone else matters!).  :)   #hicss","2011-01-07T19:04:24"]
["joinson",null,null,null,null,null,null,null,null,null,null,null,null,"http://a2.twimg.com/a/1292975674/images/default_profile_2_normal.png",null,null,null,null,null,null,null,null,null,null,null,null,null,null,79,136,396,1,"Reader in Information Systems. Researching privacy, trust, communication","London",0,"2007-07-24T11:25:24","Open Twitter Page for This Person","http://twitter.com/joinson","#hicss ... Frequent / unimportant posts or dodgy attitudes most likely reason to be unfriended on facebook.","2011-01-07T20:49:39"]
["andreawiggins",null,null,null,null,null,null,null,null,null,null,null,null,"http://a2.twimg.com/profile_images/830080615/awiggins_100x100_headshot_normal.jpg",null,null,null,null,null,null,null,null,null,null,null,null,null,null,183,138,340,94,"Information Science & Technology PhD Candidate at Syracuse University, studying technologies for citizen science","Quito",-18000,"2010-04-17T11:11:52","Open Twitter Page for This Person","http://twitter.com/andreawiggins","curious about #citizenscience? Discussing 5 flavors of participation in \"From Conservation to Crowdsourcing\" at #HICSS IN6 session this PM!","2011-01-07T20:20:51"]
["saddolls",null,null,null,null,null,null,null,null,null,null,null,null,"http://a3.twimg.com/profile_images/66922306/dollface_normal.jpg",null,null,null,null,null,null,null,null,null,null,null,null,null,null,136,56,525,16,"digital taxidermist of the saddest dolls","Alaska",-32400,"2008-12-10T00:16:56","Open Twitter Page for This Person","http://twitter.com/saddolls","RT @rmason: Congratulations to Karine Nahon and Jeff Hemsley, winners of the HICSS best paper in the eGovernment track: http://ht.ly/3Agkl","2011-01-07T23:12:58"]
["rmason",null,null,null,null,null,null,null,null,null,null,null,null,"http://a3.twimg.com/profile_images/65291692/Bob_Kauai_5476_mgm_normal.jpg",null,null,null,null,null,null,null,null,null,null,null,null,null,null,37,99,421,2,"professor at iSchool, U of Washington","Pacific Time (US & Canada)",-28800,"2008-02-18T00:10:42","Open Twitter Page for This Person","http://twitter.com/rmason","Congratulations to Karine Nahon and Jeff Hemsley, winners of the HICSS best paper in the eGovernment track: http://ht.ly/3Agkl","2011-01-07T23:04:18"]
["counterpunkt",null,null,null,null,null,null,null,null,null,null,null,null,"http://a1.twimg.com/profile_images/1180497695/me_painted_normal.JPG",null,null,null,null,null,null,null,null,null,null,null,null,null,null,101,25,57,1,"This blog is an experiment to see if I can be disciplined enough to write on a daily basis about what interests me.",null,null,"2010-12-02T01:14:49","Open Twitter Page for This Person","http://twitter.com/counterpunkt","RT @dalprof: #HICSS  Is Happiness Contagious Online? Slides: http://slidesha.re/eO4qdG | Paper: http://bit.ly/eer95o","2011-01-08T01:13:17"]
["dalprof",null,null,null,null,null,null,null,null,null,null,null,null,"http://a3.twimg.com/profile_images/602315394/gruzd_photo_normal.jpg",null,null,null,null,null,null,null,null,null,null,null,null,null,null,98,181,171,0,"Assistant Professor, \nSchool of Information Management, \nDalhousie University","Atlantic Time (Canada)",-14400,"2009-10-08T03:02:34","Open Twitter Page for This Person","http://twitter.com/dalprof","New post: “Is Happiness Contagious Online” Paper presented at #HICSS http://bit.ly/fBKZww by Anatoliy Gruzd","2011-01-09T20:20:06"]
["alan_wolf",null,null,null,null,null,null,null,null,null,null,null,null,"http://a0.twimg.com/profile_images/110891709/237655331_f227f3432c_s_normal.jpg",null,null,null,null,null,null,null,null,null,null,null,null,null,null,197,215,3487,25,"All about wine & food, technology & learning, science, and whatever strikes my fancy. But mostly, I'd rather take photos http://flickr.com/photos/alumroot","Central Time (US & Canada)",-21600,"2008-11-05T00:07:29","Open Twitter Page for This Person","http://twitter.com/alan_wolf","RT @dmrussell: #hicss Great session on web credibility. People rapidly assess the cred of a web page, but aren't always aware of what factors they use","2011-01-08T01:48:29"]
["dmrussell",null,null,null,null,null,null,null,null,null,null,null,null,"http://a0.twimg.com/profile_images/76630026/danrussell-tilted_normal.jpg",null,null,null,null,null,null,null,null,null,null,null,null,null,null,58,193,133,0,"search anthropologist for Google","Pacific Time (US & Canada)",-28800,"2008-11-02T19:01:29","Open Twitter Page for This Person","http://twitter.com/dmrussell","#hicss Great session on web credibility. People rapidly assess the cred of a web page, but aren't always aware of what factors they use","2011-01-08T00:15:26"]
["trancekr",null,null,null,null,null,null,null,null,null,null,null,null,"http://a0.twimg.com/profile_images/1209903556/avatarpic-L-010711_000_normal.png",null,null,null,null,null,null,null,null,null,null,null,null,null,null,583,417,12073,222,"TKR vs Kaede","Arizona",-25200,"2009-05-31T06:45:48","Open Twitter Page for This Person","http://twitter.com/trancekr","RT @arcticpenguin: \"I'm going to friend you just to unfriend you\" says @jvitak to @natpoor #HICSS #greatquote","2011-01-07T21:59:26"]
["natpoor",null,null,null,null,null,null,null,null,null,null,null,null,"http://a0.twimg.com/profile_images/1138053121/natpoor2_normal.jpg",null,null,null,null,null,null,null,null,null,null,null,null,null,null,40,21,252,0,"Social software consultant, writer, and recovering professor.","Eastern Time (US & Canada)",-18000,"2010-09-17T16:46:20","Open Twitter Page for This Person","http://twitter.com/natpoor","#hicss Hard to complain about not having signal when you don't have signal. Mountain tops will do that.","2011-01-09T01:49:49"]
["adruin",null,null,null,null,null,null,null,null,null,null,null,null,"http://a0.twimg.com/profile_images/647265442/Druin_normal.jpg",null,null,null,null,null,null,null,null,null,null,null,null,null,null,108,322,1004,25,"Associate Dean for Research, iSchool & Director, HCIL University of Maryland. Research focused on new technologies & children.","Central Time (US & Canada)",-21600,"2010-01-22T02:43:04","Open Twitter Page for This Person","http://twitter.com/adruin","RT @dmrussell: #hicss Great session on web credibility. People rapidly assess the cred of a web page, but aren't always aware of what factors they use","2011-01-08T14:45:20"]
["dleach",null,null,null,null,null,null,null,null,null,null,null,null,"http://a1.twimg.com/profile_images/64131334/1010081758a4_normal.jpg",null,null,null,null,null,null,null,null,null,null,null,null,null,null,5,4,66,4,"One of many...","La Paz",-14400,"2008-07-21T12:00:59","Open Twitter Page for This Person","http://twitter.com/dleach","RT @SottedReviewer: IT'S TOUGH LEAVING KAUAI BEHIND, BUT REMEMBER SOME HAVE IT WORSE THAN OTHERS... LIKE THE POOR SOULS FLYING BACK TO EAST LANSING. #HICSS","2011-01-08T19:24:46"]
["sottedreviewer",null,null,null,null,null,null,null,null,null,null,null,null,"http://a0.twimg.com/profile_images/1152344839/4231574198_3ec4d034bc_normal.jpg",null,null,null,null,null,null,null,null,null,null,null,null,null,null,39,66,116,0,"Even beer goggles can't save your crappy submission.","Tijuana",-28800,"2010-10-25T18:12:07","Open Twitter Page for This Person","http://twitter.com/sottedreviewer","IT'S TOUGH LEAVING KAUAI BEHIND, BUT REMEMBER SOME HAVE IT WORSE THAN OTHERS... LIKE THE POOR SOULS FLYING BACK TO EAST LANSING. #HICSS","2011-01-08T07:48:07"]
["shen045",null,null,null,null,null,null,null,null,null,null,null,null,"http://a3.twimg.com/profile_images/351846166/twitterProfilePhoto_normal.jpg",null,null,null,null,null,null,null,null,null,null,null,null,null,null,59,40,183,2,"Researcher. Lecturer. Web developer. Geek.  Former PhD procrastinator. Chocolate addict. Atheist. Cocktail enthusiast.  Kiwi.","Auckland",43200,"2007-05-04T05:27:43","Open Twitter Page for This Person","http://twitter.com/shen045","RT @dalprof #HICSS  Is Happiness Contagious Online? Slides: http://slidesha.re/eO4qdG | Paper: http://bit.ly/eer95o","2011-01-09T20:02:08"]
["nitya",null,null,null,null,null,null,null,null,null,null,null,null,"http://a2.twimg.com/profile_images/714911279/nitya_profile_normal.JPG",null,null,null,null,null,null,null,null,null,null,null,null,null,null,563,681,5640,1829,"Researcher, developer. Focus on social apps and platforms bridging mobile, web and TV. Lifelong Bookworm. Eternal optimist.","Eastern Time (US & Canada)",-18000,"2007-02-09T05:44:39","Open Twitter Page for This Person","http://twitter.com/nitya","RT @dingstweets: Paper presented at #hicss on social games initiating, maintaining and enhancing relationships: http://bit.ly/gyL6wM http://bit.ly/h57VfA","2011-01-08T19:56:47"]
["dingstweets",null,null,null,null,null,null,null,null,null,null,null,null,"http://a1.twimg.com/profile_images/279099712/GMDH02_00721_normal.png",null,null,null,null,null,null,null,null,null,null,null,null,null,null,232,1110,2480,163,"Aspiring architect in the cathedral of human understanding. Researcher & designer working on UX, games, and persuasive design. All tweets cc:by-nc/3.0.","Berlin",3600,"2008-04-18T17:28:00","Open Twitter Page for This Person","http://twitter.com/dingstweets","Correction! #hicss 2011 paper on social games initiating, maintaining and enhancing relationships is this: http://bit.ly/fLBeFU (PDF)","2011-01-09T08:37:46"]
["sogamestudies",null,null,null,null,null,null,null,null,null,null,null,null,"http://a3.twimg.com/profile_images/1114765887/FarmvilleCow_normal.png",null,null,null,null,null,null,null,null,null,null,null,null,null,null,6,102,43,0,"A multi-authored blog collecting ideas and findings from the academic study of social games.",null,null,"2010-07-14T05:08:31","Open Twitter Page for This Person","http://twitter.com/sogamestudies","Correction! #hicss 2011 paper on social games initiating, maintaining and enhancing relationships is this: http://bit.ly/fLBeFU (PDF)","2011-01-09T08:38:11"]
["andreyz",null,null,null,null,null,null,null,null,null,null,null,null,"http://a3.twimg.com/profile_images/1170772980/profile_squared_normal_normal.png",null,null,null,null,null,null,null,null,null,null,null,null,null,null,415,331,1744,80,"Carpe Ludus!","Stockholm",3600,"2007-10-11T21:17:58","Open Twitter Page for This Person","http://twitter.com/andreyz","Paper on social games initiating, maintaining and enhancing relationships: http://t.co/aa52rXq http://t.co/RMr1q0Q ~@dingstweets","2011-01-08T20:36:03"]
["mfcrawford",null,null,null,null,null,null,null,null,null,null,null,null,"http://a1.twimg.com/profile_images/1105106670/972929477_yNxzY-O_normal.jpeg",null,null,null,null,null,null,null,null,null,null,null,null,null,null,359,460,2719,0,"Working on the future, at the Institute for the Future. ","Pacific Time (US & Canada)",-28800,"2008-06-27T17:53:35","Open Twitter Page for This Person","http://twitter.com/mfcrawford","RT @avantgame: @manojalpa interesting article on social interactions on FB & IRL, and perceived social support http://bit.ly/gyL6wM","2011-01-08T22:05:17"]
["derrickcogburn",null,null,null,null,null,null,null,null,null,null,null,null,"http://a1.twimg.com/profile_images/56527178/Derrick_Cogburn_2007_normal.jpg",null,null,null,null,null,null,null,null,null,null,null,null,null,null,429,426,2163,24,"Associate Professor at American University/Syracuse University and Director, Center for Research on Collaboratories and Technology Enhanced Learning Communities","Eastern Time (US & Canada)",-18000,"2008-07-11T13:16:39","Open Twitter Page for This Person","http://twitter.com/derrickcogburn","An overcast day on the Garden Isle. Still gorgeous though. Last day of #hicss 44. (@ Grand Hyatt Kauai Resort & Spa) http://4sq.com/fg9MUg","2011-01-07T19:57:31"]
["staeiou",null,null,null,null,null,null,null,null,null,null,null,null,"http://a3.twimg.com/profile_images/1128329590/stu-portrait_normal.jpg",null,null,null,null,null,null,null,null,null,null,null,null,null,null,65,164,759,0,"Ph.D student at UC-Berkeley's iSchool who studies knowledge production and the socio-technical infrastructures that support it.","Eastern Time (US & Canada)",-18000,"2008-03-21T15:10:15","Open Twitter Page for This Person","http://twitter.com/staeiou","@afamiglietti Awesome! Checked out the slides, loving the trace pedagogy. FYI, I just put our HICSS paper on trace ethnography on my website","2011-01-09T02:22:05"]
["karineb",null,null,null,null,null,null,null,null,null,null,null,null,"http://a3.twimg.com/profile_images/462983120/k_normal.jpg",null,null,null,null,null,null,null,null,null,null,null,null,null,null,406,654,512,0,"Faculty in the Information School at University of Washington. Information politics and policy; social networking and digital divide/s","Pacific Time (US & Canada)",-28800,"2008-11-11T22:23:30","Open Twitter Page for This Person","http://twitter.com/karineb","Our paper got the best paper award at HICSS on Information Virality and the blogosphere: homphily and powerlaw http://bit.ly/buN3vE","2011-01-09T03:45:52"]
["grandhyattkauai",null,null,null,null,null,null,null,null,null,null,null,null,"http://a0.twimg.com/profile_images/136470511/Exterior-Sunset-web_normal.jpg",null,null,null,null,null,null,null,null,null,null,null,null,null,null,2052,2673,4224,7,"Stay at a Hawaiian Classic resort in Poipu, Kauai.  Deluxe accomodations, beachfront luxury, award winning dining and renowned Anara Spa.","Hawaii",-36000,"2009-01-20T22:13:23","Open Twitter Page for This Person","http://twitter.com/grandhyattkauai","RT @derrickcogburn: HICSS 44 Workshop Day! Lots of great choices. (@ Grand Hyatt Kauai Resort & Spa w/ 2 others) http://4sq.com/gp9Hcv","2011-01-04T21:52:02"]
["paulmbaker",null,null,null,null,null,null,null,null,null,null,null,null,"http://a0.twimg.com/profile_images/933419594/Napa_09_normal.jpg",null,null,null,null,null,null,null,null,null,null,null,null,null,null,476,223,912,4,"stochastic Sr. Researcher, GA TECH: social media, online community, e-gov, disability policy, virtual collaboration; Quaker, comparative religion, equestrian  ","Quito",-18000,"2010-05-25T21:16:58","Open Twitter Page for This Person","http://twitter.com/paulmbaker","@clifflampe: interesting, is there a  ppr URL?\n RT @jvitak: #hicss @arcticpenguin identifies 3 outcomes of social network game","2011-01-07T01:17:53"]
["shangz",null,null,null,null,null,null,null,null,null,null,null,null,"http://a2.twimg.com/profile_images/351627295/semantic_web_technology_stack_normal.png",null,null,null,null,null,null,null,null,null,null,null,null,null,null,493,174,972,569,"Semantizen from RPI.","Eastern Time (US & Canada)",-18000,"2009-01-21T03:54:13","Open Twitter Page for This Person","http://twitter.com/shangz","RT @dlmcguinness: #hicss: great questions and interest on my talk on population science grid demo on tobacco data and our semantic web infrastructure #twcrpi","2011-01-04T22:38:30"]
["dlmcguinness",null,null,null,null,null,null,null,null,null,null,null,null,"http://a1.twimg.com/profile_images/73945634/dlm17percent_normal.jpg",null,null,null,null,null,null,null,null,null,null,null,null,null,null,36,266,238,3,"Professor, Semantic Web Guru, and Wine Connoisseur","Eastern Time (US & Canada)",-18000,"2009-01-17T20:14:10","Open Twitter Page for This Person","http://twitter.com/dlmcguinness","Great post #hicss discussions on cyberinfrastucture and health informatics. Conveniently by the pool for portions. Great event overall","2011-01-09T04:13:40"]
["pewology",null,null,null,null,null,null,null,null,null,null,null,null,"http://a1.twimg.com/profile_images/1083131074/avatart_normal.jpg",null,null,null,null,null,null,null,null,null,null,null,null,null,null,195,146,1555,0,"Game and online media psychologist. Sometimes I write stuff!","Amsterdam",3600,"2010-07-21T20:45:50","Open Twitter Page for This Person","http://twitter.com/pewology","RT @sogamestudies: Correction! #hicss 2011 paper on social games initiating, maintaining and enhancing relationships is this: http://bit.ly/fLBeFU (PDF)","2011-01-09T09:07:58"]
["agneseh",null,null,null,null,null,null,null,null,null,null,null,null,"http://a2.twimg.com/profile_images/1169173531/49134_503227105_7693650_n_normal.jpg",null,null,null,null,null,null,null,null,null,null,null,null,null,null,244,234,724,5,"Post-Doc - Department of Social Sciences - Università di Torino - Italy. Interested in fan cultures, social media and transnational audiences. ","Hawaii",-36000,"2008-03-20T12:05:45","Open Twitter Page for This Person","http://twitter.com/agneseh","RT @nicole_ellison: $20/day hotel internet access uses wifi password \"free\"! psychological manipulation, wry irony or black humor? #hicss","2011-01-09T18:32:12"]
["bkuz001",null,null,null,null,null,null,null,null,null,null,null,null,"http://a0.twimg.com/profile_images/1184524482/161659_711686127_1127230_q_normal.jpg",null,null,null,null,null,null,null,null,null,null,null,null,null,null,35,33,80,0,null,"Hawaii",-36000,"2009-04-27T06:46:41","Open Twitter Page for This Person","http://twitter.com/bkuz001","RT @shen045: Product reviews are judged more helpful if the reviewer says they are an expert. IN1 #HICSS","2011-01-05T20:19:48"]
["simulanten",null,null,null,null,null,null,null,null,null,null,null,null,"http://a3.twimg.com/profile_images/552968386/lfs2_normal.jpg",null,null,null,null,null,null,null,null,null,null,null,null,null,null,19,66,199,0,"Die Arbeitsgruppe Simulation an der Universität Magdeburg.","Berlin",3600,"2009-12-01T10:21:38","Open Twitter Page for This Person","http://twitter.com/simulanten","Die HICSS Tagung ist fast vorbei. Neue Kontakte geknüpft nach NL, USA, NZ. Könnte auch für Studenten interessant sein. (GH)","2011-01-07T23:47:55"]
["graham_horton",null,null,null,null,null,null,null,null,null,null,null,null,"http://a0.twimg.com/profile_images/355963983/me_normal.jpg",null,null,null,null,null,null,null,null,null,null,null,null,null,null,104,213,376,0,"Professor and Innovation Consultant","Berlin",3600,"2009-07-19T21:02:04","Open Twitter Page for This Person","http://twitter.com/graham_horton","Home at last: The return journey from Hawaii took 40 hours. Already making plans to present at the HICSS conference again next year though!","2011-01-09T21:12:52"]
["deptofhighfives",null,null,null,null,null,null,null,null,null,null,null,null,"http://a1.twimg.com/profile_images/1176045535/Photo_on_2010-11-26_at_08.46__2_normal.jpg",null,null,null,null,null,null,null,null,null,null,null,null,null,null,188,123,973,0,"public transit enthusiast, Craigslist Missed Connections aficionado, music lover, city dweller, nerd, handy with glue gun, closet romantic/occasional cynic. ","Central Time (US & Canada)",-21600,"2009-02-12T17:31:37","Open Twitter Page for This Person","http://twitter.com/deptofhighfives","+ tweets RTs > - tweets RT @dalprof: #HICSS  Is Happiness Contagious Online? Slides: http://slidesha.re/eO4qdG | Paper: http://bit.ly/eer95o","2011-01-09T21:09:53"]
["paulmcenany",null,null,null,null,null,null,null,null,null,null,null,null,"http://a1.twimg.com/profile_images/299134309/paulquickstory081808_crop_normal.jpg",null,null,null,null,null,null,null,null,null,null,null,null,null,null,756,981,3042,2,"director of strategy at twist image. generally superb individual. greatest marketer in the history of the universe. lightly sarcastic.","Eastern Time (US & Canada)",-18000,"2007-03-08T04:53:23","Open Twitter Page for This Person","http://twitter.com/paulmcenany","RT @deptofhighfives dalprof: #HICSS  Is Happiness Contagious Online? Slides: http://slidesha.re/eO4qdG | Paper: http://bit.ly/eer95o","2011-01-09T21:13:01"]
["lmpeet",null,null,null,null,null,null,null,null,null,null,null,null,"http://a1.twimg.com/profile_images/1030715309/untitled_normal.JPG",null,null,null,null,null,null,null,null,null,null,null,null,null,null,102,97,308,42,"PhD student (Information Management/Computer Science) with a background in costuming. Big change.   ","Eastern Time (US & Canada)",-18000,"2009-05-03T00:33:17","Open Twitter Page for This Person","http://twitter.com/lmpeet","RT @dalprof: New post: “Is Happiness Contagious Online” Paper presented at #HICSS http://bit.ly/fBKZww by Anatoliy Gruzd","2011-01-09T22:12:37"]
["klaula",null,null,null,null,null,null,null,null,null,null,null,null,"http://a0.twimg.com/profile_images/308605457/libraryALA_003_normal.jpg",null,null,null,null,null,null,null,null,null,null,null,null,null,null,177,169,891,4,"community, library, Eastern Europe, story, technology, children, life...and PhD student GSLIS-UIUC","Central Time (US & Canada)",-21600,"2008-05-09T06:14:17","Open Twitter Page for This Person","http://twitter.com/klaula","RT @dalprof: New post: “Is Happiness Contagious Online” Paper presented at #HICSS http://bit.ly/fBKZww by Anatoliy Gruzd","2011-01-09T22:27:56"]
["furrystoat",null,null,null,null,null,null,null,null,null,null,null,null,"http://a3.twimg.com/profile_images/1200623393/stoat1_normal.gif",null,null,null,null,null,null,null,null,null,null,null,null,null,null,2001,1782,10219,23,"Reagan /Palin / Coulter Conservative guy, proud supporter of our Troops AND their mission. Emergency medicine, firearms,travel, bacon & general troublemaking.","Pacific Time (US & Canada)",-28800,"2009-04-19T22:48:13","Open Twitter Page for This Person","http://twitter.com/furrystoat","RT @ResearchBlogs: “Is Happiness Contagious Online” Paper presented at #HICSS http://goo.gl/fb/fGu3E #twitter #tcot #tech","2011-01-09T23:12:50"]
["researchblogs",null,null,null,null,null,null,null,null,null,null,null,null,"http://a2.twimg.com/profile_images/67031926/rb_normal.png",null,null,null,null,null,null,null,null,null,null,null,null,null,null,36,2503,9972,0,"The best blog posts about peer-reviewed research","Eastern Time (US & Canada)",-18000,"2008-12-10T22:11:22","Open Twitter Page for This Person","http://twitter.com/researchblogs","“Is Happiness Contagious Online” Paper presented at #HICSS http://goo.gl/fb/fGu3E","2011-01-09T23:10:15"]
["thecatandthekey",null,null,null,null,null,null,null,null,null,null,null,null,"http://a0.twimg.com/profile_images/1162648647/03tiny_door_normal.jpg",null,null,null,null,null,null,null,null,null,null,null,null,null,null,698,698,12703,240,"Im a Spanish Childpsychologist,DV field,fierce retwitter of Psy topics,family,education,health,inspirational quotes,and though-full tweets.Humour always welcome",null,null,"2010-05-23T21:08:19","Open Twitter Page for This Person","http://twitter.com/thecatandthekey","RT @ResearchBlogs: “Is Happiness Contagious Online” Paper presented at #HICSS http://goo.gl/fb/fGu3E","2011-01-09T23:28:14"]
["canibaisereis",null,null,null,null,null,null,null,null,null,null,null,null,"http://a2.twimg.com/profile_images/884879927/neandertal_normal.jpg",null,null,null,null,null,null,null,null,null,null,null,null,null,null,155,73,578,0,"A civilização está a matá-lo? Experimente um estilo de vida primitivo!","Lisbon",0,"2009-09-02T11:14:33","Open Twitter Page for This Person","http://twitter.com/canibaisereis","RT @ResearchBlogs: “Is Happiness Contagious Online” Paper presented at #HICSS http://goo.gl/fb/fGu3E","2011-01-10T00:10:10"]
["fb_science",null,null,null,null,null,null,null,null,null,null,null,null,"http://a1.twimg.com/a/1292975674/images/default_profile_5_normal.png","Show",null,null,null,null,null,null,null,null,null,null,null,null,null,1,24,2342,0,null,null,null,"2010-08-01T13:10:53","Open Twitter Page for This Person","http://twitter.com/fb_science","“Is Happiness Contagious Online” Paper presented at #HICSS http://bit.ly/fBKZww","2011-01-09T23:10:08"]
["mediacons",null,null,null,null,null,null,null,null,null,null,null,null,"http://a3.twimg.com/profile_images/117208066/wr_normal.jpeg","Show",null,null,null,null,null,null,null,null,null,null,null,null,null,1890,1170,515,0,"Graduate Program: Conservation of New Media and Digital Information, MA\r\n\r\nTwitter managed by Stephan Schuster","Bern",3600,"2009-04-01T08:45:39","Open Twitter Page for This Person","http://twitter.com/mediacons","Notes from Clifford Lynch's short keynote at HICSS http://tinyurl.com/2vvhl8h","2011-01-09T18:37:23"]
["oblyvia",null,null,null,null,null,null,null,null,null,null,null,null,"http://a1.twimg.com/profile_images/1209080328/livy_normal.jpg","Show",null,null,null,null,null,null,null,null,null,null,null,null,null,797,1106,20829,87,"I don't believe in karma, but I do trust in Lord's JUSTICE! ;))","Pacific Time (US & Canada)",-28800,"2009-05-18T09:58:57","Open Twitter Page for This Person","http://twitter.com/oblyvia","Haloo kakk (⌣́_⌣̀) lagi beteehh (⌣́_⌣̀) hicss RT @yosevinatalina: Halo @oblyvia sayang cerita lagi yuk?","2011-01-08T15:05:07"]
["scifleet",null,null,null,null,null,null,null,null,null,null,null,null,"http://a1.twimg.com/profile_images/547487493/Photo_47_normal.jpg","Show",null,null,null,null,null,null,null,null,null,null,null,null,null,104,103,1186,54,"Research: Digital economy & information management; the socio-economic  dimensions of IT (incl. information flows, privacy and freedom of information)","Sydney",36000,"2009-02-10T06:37:23","Open Twitter Page for This Person","http://twitter.com/scifleet","Ive been testing out my new Sony NEX5 at HICSS-44, Hawaii and love it ... the gathering has been great too http://twitpic.com/3o2n6d","2011-01-08T09:19:33"]
["paulobermejo",null,null,null,null,null,null,null,null,null,null,null,null,"http://a0.twimg.com/profile_images/1199693912/Eu-defesa-doutorado-20022009_normal.JPG","Show",null,null,null,null,null,null,null,null,null,null,null,null,null,10,5,7,0,null,"Brasilia",-10800,"2009-10-15T17:41:14","Open Twitter Page for This Person","http://twitter.com/paulobermejo","Para conferir os principais tópicos de pesquisa Sistemas de Inf do HICSS 2011, acesse: http://www.hicss.hawaii.edu/hicss_44/schedule44.pdf","2011-01-08T08:26:56"]
["gilbert63",null,null,null,null,null,null,null,null,null,null,null,null,"http://a0.twimg.com/profile_images/112162652/Silly_smiling_zoom_vierkant_normal.jpg","Show",null,null,null,null,null,null,null,null,null,null,null,null,null,15,199,174,0,"test","Amsterdam",3600,"2009-03-17T10:23:48","Open Twitter Page for This Person","http://twitter.com/gilbert63","Last day of the HICSS conference. What a shame to have to leave Hawaii :-)!","2011-01-07T22:31:22"]
["internetcrimes",null,null,null,null,null,null,null,null,null,null,null,null,"http://a0.twimg.com/profile_images/307296208/cislogo_normal.JPG","Show",null,null,null,null,null,null,null,null,null,null,null,null,null,2608,2865,19527,3,"The computer and network training professionals.","Eastern Time (US & Canada)",-18000,"2009-07-10T17:55:11","Open Twitter Page for This Person","http://twitter.com/internetcrimes","internetcrimes.net Digitization 101: Notes from Clifford Lynch's short keynoteat HICSS http://bit.ly/fQ0qRk computer forensics","2011-01-07T18:39:51"]
["lifewiththree",null,null,null,null,null,null,null,null,null,null,null,null,"http://a0.twimg.com/a/1294279085/images/default_profile_4_normal.png","Show",null,null,null,null,null,null,null,null,null,null,null,null,null,0,31,2224,0,null,null,null,"2010-12-11T05:49:26","Open Twitter Page for This Person","http://twitter.com/lifewiththree","Notes from Clifford Lynch's short keynoteat HICSS: My colleague, Kevin Crowston, is attending… http://goo.gl/fb/Ef8Ra","2011-01-07T16:05:03"]
["keokilee",null,null,null,null,null,null,null,null,null,null,null,null,"http://a2.twimg.com/profile_images/60894989/IMG_0008_normal.JPG","Show",null,null,null,null,null,null,null,null,null,null,null,null,null,382,271,1368,26,"University of Hawaii at Manoa Computer Science Grad Student","Hawaii",-36000,"2008-08-21T09:27:54","Open Twitter Page for This Person","http://twitter.com/keokilee","Good luck! - RT @rbrewer: Getting seated for lecture by Larry Smarr at #hicss. After this I present our Kukui Cup design paper...","2011-01-06T22:47:36"]
["kuishinbo",null,null,null,null,null,null,null,null,null,null,null,null,"http://a0.twimg.com/profile_images/53083228/2276263566_c69f1b8923_s_normal.jpg","Show",null,null,null,null,null,null,null,null,null,null,null,null,null,25,58,390,0,"sassy state staff","Hawaii",-36000,"2008-04-21T07:53:39","Open Twitter Page for This Person","http://twitter.com/kuishinbo","On Kauai, attended HICSS keynote by MIT Media Lab director of Personal Robot group, sponsored by UH biz school","2011-01-06T04:02:43"]
["adobeconnect",null,null,null,null,null,null,null,null,null,null,null,null,"http://a0.twimg.com/profile_images/1152232005/adobe_connect_8_mnemonic_normal.png","Show",null,null,null,null,null,null,null,null,null,null,null,null,null,142,1142,142,2,"Your source for the latest Adobe Connect news and insights. Check out blogs.adobe.com/adobeconnect and connectusers.com. For support q's, follow @ConnectSupport","Pacific Time (US & Canada)",-28800,"2008-12-19T01:22:33","Open Twitter Page for This Person","http://twitter.com/adobeconnect","Glad to hear it, thanks! RT@neilhair Another good session with my classes via adobe connect - live from a Pacific coastline! #hicss","2011-01-06T00:25:48"]
["gbenefield",null,null,null,null,null,null,null,null,null,null,null,null,"http://a0.twimg.com/profile_images/444678680/gabby_normal.jpg","Show",null,null,null,null,null,null,null,null,null,null,null,null,null,145,260,343,0,null,"Alaska",-32400,"2007-12-06T20:24:19","Open Twitter Page for This Person","http://twitter.com/gbenefield","#HICSS would robots follow cultural norms of the creators, or a new culture that overrides these?","2011-01-05T23:27:20"]
["mrhatken",null,null,null,null,null,null,null,null,null,null,null,null,"http://a2.twimg.com/profile_images/119905091/AshleyAitkenFilled_normal.jpg","Show",null,null,null,null,null,null,null,null,null,null,null,null,null,7,11,40,0,"Happy, healthy, and challenged every day (and loving it)!","Perth",28800,"2008-01-24T19:12:12","Open Twitter Page for This Person","http://twitter.com/mrhatken","At HICSS 44 conference in Hawaii - both conference and hotel very impressive and EXPANSIVE - bit overwhelming really (but not complaining).","2011-01-04T23:02:51"]
["chosplace",null,null,null,null,null,null,null,null,null,null,null,null,"http://a2.twimg.com/profile_images/235950520/ChoJon_normal.jpg","Show",null,null,null,null,null,null,null,null,null,null,null,null,null,66,62,43,0,"Chief of Communications Technology in the Office of Communications & Education at the National Cancer Institute","Eastern Time (US & Canada)",-18000,"2009-01-08T21:41:07","Open Twitter Page for This Person","http://twitter.com/chosplace","Listening to awesome NCI presenters at HICSS-44. Great job team!","2011-01-04T21:59:05"]
["mazycat",null,null,null,null,null,null,null,null,null,null,null,null,"http://a2.twimg.com/profile_images/1082787061/guu_normal.jpg","Show",null,null,null,null,null,null,null,null,null,null,null,null,null,219,148,4216,196,"There Ain't No Such Thing As A Free Lunch.","Hawaii",-36000,"2009-06-30T04:48:15","Open Twitter Page for This Person","http://twitter.com/mazycat","찾아보니 tag cloud feature 관련 논문이 몇 개 있긴 하다. 메모용. http://bit.ly/fyQQx0  http://bit.ly/dSBDy1 http://bit.ly/h79y3T http://bit.ly/ieUvBZ","2011-01-04T14:48:49"]
["iregions",null,null,null,null,null,null,null,null,null,null,null,null,"http://a0.twimg.com/profile_images/354148120/iRegions_twitter_normal.jpg","Show",null,null,null,null,null,null,null,null,null,null,null,null,null,21,79,1265,0,"Canal informativo sobre territórios e competitividade","Hawaii",-36000,"2009-03-05T06:58:20","Open Twitter Page for This Person","http://twitter.com/iregions","HICSS-44 - Hawai’i International Conference on System Sciences http://bit.ly/dEteaH por @ananeves","2011-01-04T08:57:20"]
["cienciasexactas",null,null,null,null,null,null,null,null,null,null,null,null,"http://a1.twimg.com/profile_images/125489198/observador_normal.jpeg","Show",null,null,null,null,null,null,null,null,null,null,null,null,null,2867,2797,17556,18,"Artigos catalogados por temas associados às Ciências Exactas.","Lisbon",0,"2009-03-23T15:00:25","Open Twitter Page for This Person","http://twitter.com/cienciasexactas","economia: - HICSS-44 - Hawai’i International Conference on System Sciences http://bit.ly/heKZcP","2011-01-04T08:10:49"]
["twittconv",null,null,null,null,null,null,null,null,null,null,null,null,"http://a1.twimg.com/profile_images/558190660/vegas_normal.jpg","Show",null,null,null,null,null,null,null,null,null,null,null,null,null,6374,6368,4804,25,"Tweeting Upcoming Worldwide Conventions and forming a Tweeter Convention on the Las Vegas Strip.Convention Dates to be announced at 50,000th We #followback #TFB","Mountain Time (US & Canada)",-25200,"2009-12-04T10:08:59","Open Twitter Page for This Person","http://twitter.com/twittconv","Hawaii International Conference on System Sciences (HICSS 2011) #conventions #f4f http://ourl.com/dlrk","2011-01-04T06:00:59"]

{"sheet":"Do Not Delete","index":2,"n_rows":3,"n_cols":1,"rows_kept":3,"cut":false,"hidden":true,"merged":[]}
["This worksheet is no longer used but is retained to allow older versions of NodeXL to open workbooks created with NodeXL version 1.0.1.96 or later."]
[]
["Do not delete this worksheet."]

{"sheet":"Groups","index":3,"n_rows":2,"n_cols":17,"rows_kept":2,"cut":false,"hidden":false,"merged":[]}
[null,"Visual Properties",null,null,"Do Not Edit","Graph Metrics"]
["Group","Vertex Color","Vertex Shape","Collapsed?","ID","Vertices","Unique Edges","Edges With Duplicates","Total Edges","Self-Loops","Connected Components","Single-Vertex Connected Components","Maximum Vertices in a Connected Component","Maximum Edges in a Connected Component","Maximum Geodesic Distance (Diameter)","Average Geodesic Distance","Graph Density"]

{"sheet":"Group Vertices","index":4,"n_rows":1,"n_cols":3,"rows_kept":1,"cut":false,"hidden":false,"merged":[]}
["Group","Vertex","Vertex ID"]

{"sheet":"Overall Metrics","index":5,"n_rows":139,"n_cols":24,"rows_kept":139,"cut":false,"hidden":false,"merged":[]}
["Graph Metric","Value",null,"Degree Bin","Degree Frequency","In-Degree Bin","In-Degree Frequency","Out-Degree Bin","Out-Degree Frequency","Betweenness Centrality Bin","Betweenness Centrality Frequency","Closeness Centrality Bin","Closeness Centrality Frequency","Eigenvector Centrality Bin","Eigenvector Centrality Frequency","PageRank Bin","PageRank Frequency","Clustering Coefficient Bin","Clustering Coefficient Frequency","Dynamic Filter Bin","Dynamic Filter Frequency",null,"Histogram Property","Value"]
[null,null,null,{"$f":"MIN(Vertices[Degree])","v":0},{"$f":"COUNTIF(Vertices[Degree], \">= \" & D2) - COUNTIF(Vertices[Degree], \">=\" & D3)","v":0},{"$f":"MIN(Vertices[In-Degree])","v":0},{"$f":"COUNTIF(Vertices[In-Degree], \">= \" & F2) - COUNTIF(Vertices[In-Degree], \">=\" & F3)","v":0},{"$f":"MIN(Vertices[Out-Degree])","v":0},{"$f":"COUNTIF(Vertices[Out-Degree], \">= \" & H2) - COUNTIF(Vertices[Out-Degree], \">=\" & H3)","v":0},{"$f":"MIN(Vertices[Betweenness Centrality])","v":0},{"$f":"COUNTIF(Vertices[Betweenness Centrality], \">= \" & J2) - COUNTIF(Vertices[Betweenness Centrality], \">=\" & J3)","v":0},{"$f":"MIN(Vertices[Closeness Centrality])","v":0},{"$f":"COUNTIF(Vertices[Closeness Centrality], \">= \" & L2) - COUNTIF(Vertices[Closeness Centrality], \">=\" & L3)","v":0},{"$f":"MIN(Vertices[Eigenvector Centrality])","v":0},{"$f":"COUNTIF(Vertices[Eigenvector Centrality], \">= \" & N2) - COUNTIF(Vertices[Eigenvector Centrality], \">=\" & N3)","v":0},{"$f":"MIN(Vertices[PageRank])","v":0},{"$f":"COUNTIF(Vertices[PageRank], \">= \" & P2) - COUNTIF(Vertices[PageRank], \">=\" & P3)","v":0},{"$f":"MIN(Vertices[Clustering Coefficient])","v":0},{"$f":"COUNTIF(Vertices[Clustering Coefficient], \">= \" & R2) - COUNTIF(Vertices[Clustering Coefficient], \">=\" & R3)","v":0},{"$f":"MIN(INDIRECT(DynamicFilterSourceColumnRange))","v":{"$error":"#REF!"}},{"$f":"COUNTIF(INDIRECT(DynamicFilterSourceColumnRange), \">= \" & T2) - COUNTIF(INDIRECT(DynamicFilterSourceColumnRange), \">=\" & T3)","v":{"$error":"#REF!"}},null,"Bin Divisor",{"$f":"ROWS(HistogramBins[Degree Bin]) - 1","v":43}]
[null,null,null,{"$f":"D2+($D$45-$D$2)/BinDivisor","v":0},{"$f":"COUNTIF(Vertices[Degree], \">= \" & D3) - COUNTIF(Vertices[Degree], \">=\" & D4)","v":0},{"$f":"F2+($F$45-$F$2)/BinDivisor","v":0},{"$f":"COUNTIF(Vertices[In-Degree], \">= \" & F3) - COUNTIF(Vertices[In-Degree], \">=\" & F4)","v":0},{"$f":"H2+($H$45-$H$2)/BinDivisor","v":0},{"$f":"COUNTIF(Vertices[Out-Degree], \">= \" & H3) - COUNTIF(Vertices[Out-Degree], \">=\" & H4)","v":0},{"$f":"J2+($J$45-$J$2)/BinDivisor","v":0},{"$f":"COUNTIF(Vertices[Betweenness Centrality], \">= \" & J3) - COUNTIF(Vertices[Betweenness Centrality], \">=\" & J4)","v":0},{"$f":"L2+($L$45-$L$2)/BinDivisor","v":0},{"$f":"COUNTIF(Vertices[Closeness Centrality], \">= \" & L3) - COUNTIF(Vertices[Closeness Centrality], \">=\" & L4)","v":0},{"$f":"N2+($N$45-$N$2)/BinDivisor","v":0},{"$f":"COUNTIF(Vertices[Eigenvector Centrality], \">= \" & N3) - COUNTIF(Vertices[Eigenvector Centrality], \">=\" & N4)","v":0},{"$f":"P2+($P$45-$P$2)/BinDivisor","v":0},{"$f":"COUNTIF(Vertices[PageRank], \">= \" & P3) - COUNTIF(Vertices[PageRank], \">=\" & P4)","v":0},{"$f":"R2+($R$45-$R$2)/BinDivisor","v":0},{"$f":"COUNTIF(Vertices[Clustering Coefficient], \">= \" & R3) - COUNTIF(Vertices[Clustering Coefficient], \">=\" & R4)","v":0},{"$f":"T2+($T$45-$T$2)/BinDivisor","v":{"$error":"#REF!"}},{"$error":"#REF!"},null,"No Metric Message","Not Available"]
[null,null,null,0,{"$f":"COUNTIF(Vertices[Degree], \">= \" & D4) - COUNTIF(Vertices[Degree], \">=\" & D5)","v":0},0,{"$f":"COUNTIF(Vertices[In-Degree], \">= \" & F4) - COUNTIF(Vertices[In-Degree], \">=\" & F5)","v":0},0,{"$f":"COUNTIF(Vertices[Out-Degree], \">= \" & H4) - COUNTIF(Vertices[Out-Degree], \">=\" & H5)","v":0},0,{"$f":"COUNTIF(Vertices[Betweenness Centrality], \">= \" & J4) - COUNTIF(Vertices[Betweenness Centrality], \">=\" & J5)","v":0},0,{"$f":"COUNTIF(Vertices[Closeness Centrality], \">= \" & L4) - COUNTIF(Vertices[Closeness Centrality], \">=\" & L5)","v":0},0,{"$f":"COUNTIF(Vertices[Eigenvector Centrality], \">= \" & N4) - COUNTIF(Vertices[Eigenvector Centrality], \">=\" & N5)","v":0},0,{"$f":"COUNTIF(Vertices[PageRank], \">= \" & P4) - COUNTIF(Vertices[PageRank], \">=\" & P5)","v":0},0,{"$f":"COUNTIF(Vertices[Clustering Coefficient], \">= \" & R4) - COUNTIF(Vertices[Clustering Coefficient], \">=\" & R5)","v":0},{"$error":"#REF!"},{"$error":"#REF!"},null,"Dynamic Filter Source Column Range","TableName[ColumnName]"]
[null,null,null,0,{"$f":"COUNTIF(Vertices[Degree], \">= \" & D5) - COUNTIF(Vertices[Degree], \">=\" & D6)","v":0},0,{"$f":"COUNTIF(Vertices[In-Degree], \">= \" & F5) - COUNTIF(Vertices[In-Degree], \">=\" & F6)","v":0},0,{"$f":"COUNTIF(Vertices[Out-Degree], \">= \" & H5) - COUNTIF(Vertices[Out-Degree], \">=\" & H6)","v":0},0,{"$f":"COUNTIF(Vertices[Betweenness Centrality], \">= \" & J5) - COUNTIF(Vertices[Betweenness Centrality], \">=\" & J6)","v":0},0,{"$f":"COUNTIF(Vertices[Closeness Centrality], \">= \" & L5) - COUNTIF(Vertices[Closeness Centrality], \">=\" & L6)","v":0},0,{"$f":"COUNTIF(Vertices[Eigenvector Centrality], \">= \" & N5) - COUNTIF(Vertices[Eigenvector Centrality], \">=\" & N6)","v":0},0,{"$f":"COUNTIF(Vertices[PageRank], \">= \" & P5) - COUNTIF(Vertices[PageRank], \">=\" & P6)","v":0},0,{"$f":"COUNTIF(Vertices[Clustering Coefficient], \">= \" & R5) - COUNTIF(Vertices[Clustering Coefficient], \">=\" & R6)","v":0},{"$error":"#REF!"},{"$error":"#REF!"}]
[null,null,null,0,{"$f":"COUNTIF(Vertices[Degree], \">= \" & D6) - COUNTIF(Vertices[Degree], \">=\" & D7)","v":0},0,{"$f":"COUNTIF(Vertices[In-Degree], \">= \" & F6) - COUNTIF(Vertices[In-Degree], \">=\" & F7)","v":0},0,{"$f":"COUNTIF(Vertices[Out-Degree], \">= \" & H6) - COUNTIF(Vertices[Out-Degree], \">=\" & H7)","v":0},0,{"$f":"COUNTIF(Vertices[Betweenness Centrality], \">= \" & J6) - COUNTIF(Vertices[Betweenness Centrality], \">=\" & J7)","v":0},0,{"$f":"COUNTIF(Vertices[Closeness Centrality], \">= \" & L6) - COUNTIF(Vertices[Closeness Centrality], \">=\" & L7)","v":0},0,{"$f":"COUNTIF(Vertices[Eigenvector Centrality], \">= \" & N6) - COUNTIF(Vertices[Eigenvector Centrality], \">=\" & N7)","v":0},0,{"$f":"COUNTIF(Vertices[PageRank], \">= \" & P6) - COUNTIF(Vertices[PageRank], \">=\" & P7)","v":0},0,{"$f":"COUNTIF(Vertices[Clustering Coefficient], \">= \" & R6) - COUNTIF(Vertices[Clustering Coefficient], \">=\" & R7)","v":0},{"$error":"#REF!"},{"$error":"#REF!"}]
[null,null,null,0,{"$f":"COUNTIF(Vertices[Degree], \">= \" & D7) - COUNTIF(Vertices[Degree], \">=\" & D8)","v":0},0,{"$f":"COUNTIF(Vertices[In-Degree], \">= \" & F7) - COUNTIF(Vertices[In-Degree], \">=\" & F8)","v":0},0,{"$f":"COUNTIF(Vertices[Out-Degree], \">= \" & H7) - COUNTIF(Vertices[Out-Degree], \">=\" & H8)","v":0},0,{"$f":"COUNTIF(Vertices[Betweenness Centrality], \">= \" & J7) - COUNTIF(Vertices[Betweenness Centrality], \">=\" & J8)","v":0},0,{"$f":"COUNTIF(Vertices[Closeness Centrality], \">= \" & L7) - COUNTIF(Vertices[Closeness Centrality], \">=\" & L8)","v":0},0,{"$f":"COUNTIF(Vertices[Eigenvector Centrality], \">= \" & N7) - COUNTIF(Vertices[Eigenvector Centrality], \">=\" & N8)","v":0},0,{"$f":"COUNTIF(Vertices[PageRank], \">= \" & P7) - COUNTIF(Vertices[PageRank], \">=\" & P8)","v":0},0,{"$f":"COUNTIF(Vertices[Clustering Coefficient], \">= \" & R7) - COUNTIF(Vertices[Clustering Coefficient], \">=\" & R8)","v":0},{"$error":"#REF!"},{"$error":"#REF!"}]
[null,null,null,0,{"$f":"COUNTIF(Vertices[Degree], \">= \" & D8) - COUNTIF(Vertices[Degree], \">=\" & D9)","v":0},0,{"$f":"COUNTIF(Vertices[In-Degree], \">= \" & F8) - COUNTIF(Vertices[In-Degree], \">=\" & F9)","v":0},0,{"$f":"COUNTIF(Vertices[Out-Degree], \">= \" & H8) - COUNTIF(Vertices[Out-Degree], \">=\" & H9)","v":0},0,{"$f":"COUNTIF(Vertices[Betweenness Centrality], \">= \" & J8) - COUNTIF(Vertices[Betweenness Centrality], \">=\" & J9)","v":0},0,{"$f":"COUNTIF(Vertices[Closeness Centrality], \">= \" & L8) - COUNTIF(Vertices[Closeness Centrality], \">=\" & L9)","v":0},0,{"$f":"COUNTIF(Vertices[Eigenvector Centrality], \">= \" & N8) - COUNTIF(Vertices[Eigenvector Centrality], \">=\" & N9)","v":0},0,{"$f":"COUNTIF(Vertices[PageRank], \">= \" & P8) - COUNTIF(Vertices[PageRank], \">=\" & P9)","v":0},0,{"$f":"COUNTIF(Vertices[Clustering Coefficient], \">= \" & R8) - COUNTIF(Vertices[Clustering Coefficient], \">=\" & R9)","v":0},{"$error":"#REF!"},{"$error":"#REF!"}]
[null,null,null,0,{"$f":"COUNTIF(Vertices[Degree], \">= \" & D9) - COUNTIF(Vertices[Degree], \">=\" & D10)","v":0},0,{"$f":"COUNTIF(Vertices[In-Degree], \">= \" & F9) - COUNTIF(Vertices[In-Degree], \">=\" & F10)","v":0},0,{"$f":"COUNTIF(Vertices[Out-Degree], \">= \" & H9) - COUNTIF(Vertices[Out-Degree], \">=\" & H10)","v":0},0,{"$f":"COUNTIF(Vertices[Betweenness Centrality], \">= \" & J9) - COUNTIF(Vertices[Betweenness Centrality], \">=\" & J10)","v":0},0,{"$f":"COUNTIF(Vertices[Closeness Centrality], \">= \" & L9) - COUNTIF(Vertices[Closeness Centrality], \">=\" & L10)","v":0},0,{"$f":"COUNTIF(Vertices[Eigenvector Centrality], \">= \" & N9) - COUNTIF(Vertices[Eigenvector Centrality], \">=\" & N10)","v":0},0,{"$f":"COUNTIF(Vertices[PageRank], \">= \" & P9) - COUNTIF(Vertices[PageRank], \">=\" & P10)","v":0},0,{"$f":"COUNTIF(Vertices[Clustering Coefficient], \">= \" & R9) - COUNTIF(Vertices[Clustering Coefficient], \">=\" & R10)","v":0},{"$error":"#REF!"},{"$error":"#REF!"}]
[null,null,null,0,{"$f":"COUNTIF(Vertices[Degree], \">= \" & D10) - COUNTIF(Vertices[Degree], \">=\" & D11)","v":0},0,{"$f":"COUNTIF(Vertices[In-Degree], \">= \" & F10) - COUNTIF(Vertices[In-Degree], \">=\" & F11)","v":0},0,{"$f":"COUNTIF(Vertices[Out-Degree], \">= \" & H10) - COUNTIF(Vertices[Out-Degree], \">=\" & H11)","v":0},0,{"$f":"COUNTIF(Vertices[Betweenness Centrality], \">= \" & J10) - COUNTIF(Vertices[Betweenness Centrality], \">=\" & J11)","v":0},0,{"$f":"COUNTIF(Vertices[Closeness Centrality], \">= \" & L10) - COUNTIF(Vertices[Closeness Centrality], \">=\" & L11)","v":0},0,{"$f":"COUNTIF(Vertices[Eigenvector Centrality], \">= \" & N10) - COUNTIF(Vertices[Eigenvector Centrality], \">=\" & N11)","v":0},0,{"$f":"COUNTIF(Vertices[PageRank], \">= \" & P10) - COUNTIF(Vertices[PageRank], \">=\" & P11)","v":0},0,{"$f":"COUNTIF(Vertices[Clustering Coefficient], \">= \" & R10) - COUNTIF(Vertices[Clustering Coefficient], \">=\" & R11)","v":0},{"$error":"#REF!"},{"$error":"#REF!"}]
[null,null,null,0,{"$f":"COUNTIF(Vertices[Degree], \">= \" & D11) - COUNTIF(Vertices[Degree], \">=\" & D12)","v":0},0,{"$f":"COUNTIF(Vertices[In-Degree], \">= \" & F11) - COUNTIF(Vertices[In-Degree], \">=\" & F12)","v":0},0,{"$f":"COUNTIF(Vertices[Out-Degree], \">= \" & H11) - COUNTIF(Vertices[Out-Degree], \">=\" & H12)","v":0},0,{"$f":"COUNTIF(Vertices[Betweenness Centrality], \">= \" & J11) - COUNTIF(Vertices[Betweenness Centrality], \">=\" & J12)","v":0},0,{"$f":"COUNTIF(Vertices[Closeness Centrality], \">= \" & L11) - COUNTIF(Vertices[Closeness Centrality], \">=\" & L12)","v":0},0,{"$f":"COUNTIF(Vertices[Eigenvector Centrality], \">= \" & N11) - COUNTIF(Vertices[Eigenvector Centrality], \">=\" & N12)","v":0},0,{"$f":"COUNTIF(Vertices[PageRank], \">= \" & P11) - COUNTIF(Vertices[PageRank], \">=\" & P12)","v":0},0,{"$f":"COUNTIF(Vertices[Clustering Coefficient], \">= \" & R11) - COUNTIF(Vertices[Clustering Coefficient], \">=\" & R12)","v":0},{"$error":"#REF!"},{"$error":"#REF!"}]
[null,null,null,0,{"$f":"COUNTIF(Vertices[Degree], \">= \" & D12) - COUNTIF(Vertices[Degree], \">=\" & D13)","v":0},0,{"$f":"COUNTIF(Vertices[In-Degree], \">= \" & F12) - COUNTIF(Vertices[In-Degree], \">=\" & F13)","v":0},0,{"$f":"COUNTIF(Vertices[Out-Degree], \">= \" & H12) - COUNTIF(Vertices[Out-Degree], \">=\" & H13)","v":0},0,{"$f":"COUNTIF(Vertices[Betweenness Centrality], \">= \" & J12) - COUNTIF(Vertices[Betweenness Centrality], \">=\" & J13)","v":0},0,{"$f":"COUNTIF(Vertices[Closeness Centrality], \">= \" & L12) - COUNTIF(Vertices[Closeness Centrality], \">=\" & L13)","v":0},0,{"$f":"COUNTIF(Vertices[Eigenvector Centrality], \">= \" & N12) - COUNTIF(Vertices[Eigenvector Centrality], \">=\" & N13)","v":0},0,{"$f":"COUNTIF(Vertices[PageRank], \">= \" & P12) - COUNTIF(Vertices[PageRank], \">=\" & P13)","v":0},0,{"$f":"COUNTIF(Vertices[Clustering Coefficient], \">= \" & R12) - COUNTIF(Vertices[Clustering Coefficient], \">=\" & R13)","v":0},{"$error":"#REF!"},{"$error":"#REF!"}]
[null,null,null,0,{"$f":"COUNTIF(Vertices[Degree], \">= \" & D13) - COUNTIF(Vertices[Degree], \">=\" & D14)","v":0},0,{"$f":"COUNTIF(Vertices[In-Degree], \">= \" & F13) - COUNTIF(Vertices[In-Degree], \">=\" & F14)","v":0},0,{"$f":"COUNTIF(Vertices[Out-Degree], \">= \" & H13) - COUNTIF(Vertices[Out-Degree], \">=\" & H14)","v":0},0,{"$f":"COUNTIF(Vertices[Betweenness Centrality], \">= \" & J13) - COUNTIF(Vertices[Betweenness Centrality], \">=\" & J14)","v":0},0,{"$f":"COUNTIF(Vertices[Closeness Centrality], \">= \" & L13) - COUNTIF(Vertices[Closeness Centrality], \">=\" & L14)","v":0},0,{"$f":"COUNTIF(Vertices[Eigenvector Centrality], \">= \" & N13) - COUNTIF(Vertices[Eigenvector Centrality], \">=\" & N14)","v":0},0,{"$f":"COUNTIF(Vertices[PageRank], \">= \" & P13) - COUNTIF(Vertices[PageRank], \">=\" & P14)","v":0},0,{"$f":"COUNTIF(Vertices[Clustering Coefficient], \">= \" & R13) - COUNTIF(Vertices[Clustering Coefficient], \">=\" & R14)","v":0},{"$error":"#REF!"},{"$error":"#REF!"}]
[null,null,null,0,{"$f":"COUNTIF(Vertices[Degree], \">= \" & D14) - COUNTIF(Vertices[Degree], \">=\" & D15)","v":0},0,{"$f":"COUNTIF(Vertices[In-Degree], \">= \" & F14) - COUNTIF(Vertices[In-Degree], \">=\" & F15)","v":0},0,{"$f":"COUNTIF(Vertices[Out-Degree], \">= \" & H14) - COUNTIF(Vertices[Out-Degree], \">=\" & H15)","v":0},0,{"$f":"COUNTIF(Vertices[Betweenness Centrality], \">= \" & J14) - COUNTIF(Vertices[Betweenness Centrality], \">=\" & J15)","v":0},0,{"$f":"COUNTIF(Vertices[Closeness Centrality], \">= \" & L14) - COUNTIF(Vertices[Closeness Centrality], \">=\" & L15)","v":0},0,{"$f":"COUNTIF(Vertices[Eigenvector Centrality], \">= \" & N14) - COUNTIF(Vertices[Eigenvector Centrality], \">=\" & N15)","v":0},0,{"$f":"COUNTIF(Vertices[PageRank], \">= \" & P14) - COUNTIF(Vertices[PageRank], \">=\" & P15)","v":0},0,{"$f":"COUNTIF(Vertices[Clustering Coefficient], \">= \" & R14) - COUNTIF(Vertices[Clustering Coefficient], \">=\" & R15)","v":0},{"$error":"#REF!"},{"$error":"#REF!"}]
[null,null,null,0,{"$f":"COUNTIF(Vertices[Degree], \">= \" & D15) - COUNTIF(Vertices[Degree], \">=\" & D16)","v":0},0,{"$f":"COUNTIF(Vertices[In-Degree], \">= \" & F15) - COUNTIF(Vertices[In-Degree], \">=\" & F16)","v":0},0,{"$f":"COUNTIF(Vertices[Out-Degree], \">= \" & H15) - COUNTIF(Vertices[Out-Degree], \">=\" & H16)","v":0},0,{"$f":"COUNTIF(Vertices[Betweenness Centrality], \">= \" & J15) - COUNTIF(Vertices[Betweenness Centrality], \">=\" & J16)","v":0},0,{"$f":"COUNTIF(Vertices[Closeness Centrality], \">= \" & L15) - COUNTIF(Vertices[Closeness Centrality], \">=\" & L16)","v":0},0,{"$f":"COUNTIF(Vertices[Eigenvector Centrality], \">= \" & N15) - COUNTIF(Vertices[Eigenvector Centrality], \">=\" & N16)","v":0},0,{"$f":"COUNTIF(Vertices[PageRank], \">= \" & P15) - COUNTIF(Vertices[PageRank], \">=\" & P16)","v":0},0,{"$f":"COUNTIF(Vertices[Clustering Coefficient], \">= \" & R15) - COUNTIF(Vertices[Clustering Coefficient], \">=\" & R16)","v":0},{"$error":"#REF!"},{"$error":"#REF!"}]
[null,null,null,0,{"$f":"COUNTIF(Vertices[Degree], \">= \" & D16) - COUNTIF(Vertices[Degree], \">=\" & D17)","v":0},0,{"$f":"COUNTIF(Vertices[In-Degree], \">= \" & F16) - COUNTIF(Vertices[In-Degree], \">=\" & F17)","v":0},0,{"$f":"COUNTIF(Vertices[Out-Degree], \">= \" & H16) - COUNTIF(Vertices[Out-Degree], \">=\" & H17)","v":0},0,{"$f":"COUNTIF(Vertices[Betweenness Centrality], \">= \" & J16) - COUNTIF(Vertices[Betweenness Centrality], \">=\" & J17)","v":0},0,{"$f":"COUNTIF(Vertices[Closeness Centrality], \">= \" & L16) - COUNTIF(Vertices[Closeness Centrality], \">=\" & L17)","v":0},0,{"$f":"COUNTIF(Vertices[Eigenvector Centrality], \">= \" & N16) - COUNTIF(Vertices[Eigenvector Centrality], \">=\" & N17)","v":0},0,{"$f":"COUNTIF(Vertices[PageRank], \">= \" & P16) - COUNTIF(Vertices[PageRank], \">=\" & P17)","v":0},0,{"$f":"COUNTIF(Vertices[Clustering Coefficient], \">= \" & R16) - COUNTIF(Vertices[Clustering Coefficient], \">=\" & R17)","v":0},{"$error":"#REF!"},{"$error":"#REF!"}]
[null,null,null,0,{"$f":"COUNTIF(Vertices[Degree], \">= \" & D17) - COUNTIF(Vertices[Degree], \">=\" & D18)","v":0},0,{"$f":"COUNTIF(Vertices[In-Degree], \">= \" & F17) - COUNTIF(Vertices[In-Degree], \">=\" & F18)","v":0},0,{"$f":"COUNTIF(Vertices[Out-Degree], \">= \" & H17) - COUNTIF(Vertices[Out-Degree], \">=\" & H18)","v":0},0,{"$f":"COUNTIF(Vertices[Betweenness Centrality], \">= \" & J17) - COUNTIF(Vertices[Betweenness Centrality], \">=\" & J18)","v":0},0,{"$f":"COUNTIF(Vertices[Closeness Centrality], \">= \" & L17) - COUNTIF(Vertices[Closeness Centrality], \">=\" & L18)","v":0},0,{"$f":"COUNTIF(Vertices[Eigenvector Centrality], \">= \" & N17) - COUNTIF(Vertices[Eigenvector Centrality], \">=\" & N18)","v":0},0,{"$f":"COUNTIF(Vertices[PageRank], \">= \" & P17) - COUNTIF(Vertices[PageRank], \">=\" & P18)","v":0},0,{"$f":"COUNTIF(Vertices[Clustering Coefficient], \">= \" & R17) - COUNTIF(Vertices[Clustering Coefficient], \">=\" & R18)","v":0},{"$error":"#REF!"},{"$error":"#REF!"}]
[null,null,null,0,{"$f":"COUNTIF(Vertices[Degree], \">= \" & D18) - COUNTIF(Vertices[Degree], \">=\" & D19)","v":0},0,{"$f":"COUNTIF(Vertices[In-Degree], \">= \" & F18) - COUNTIF(Vertices[In-Degree], \">=\" & F19)","v":0},0,{"$f":"COUNTIF(Vertices[Out-Degree], \">= \" & H18) - COUNTIF(Vertices[Out-Degree], \">=\" & H19)","v":0},0,{"$f":"COUNTIF(Vertices[Betweenness Centrality], \">= \" & J18) - COUNTIF(Vertices[Betweenness Centrality], \">=\" & J19)","v":0},0,{"$f":"COUNTIF(Vertices[Closeness Centrality], \">= \" & L18) - COUNTIF(Vertices[Closeness Centrality], \">=\" & L19)","v":0},0,{"$f":"COUNTIF(Vertices[Eigenvector Centrality], \">= \" & N18) - COUNTIF(Vertices[Eigenvector Centrality], \">=\" & N19)","v":0},0,{"$f":"COUNTIF(Vertices[PageRank], \">= \" & P18) - COUNTIF(Vertices[PageRank], \">=\" & P19)","v":0},0,{"$f":"COUNTIF(Vertices[Clustering Coefficient], \">= \" & R18) - COUNTIF(Vertices[Clustering Coefficient], \">=\" & R19)","v":0},{"$error":"#REF!"},{"$error":"#REF!"}]
[null,null,null,0,{"$f":"COUNTIF(Vertices[Degree], \">= \" & D19) - COUNTIF(Vertices[Degree], \">=\" & D20)","v":0},0,{"$f":"COUNTIF(Vertices[In-Degree], \">= \" & F19) - COUNTIF(Vertices[In-Degree], \">=\" & F20)","v":0},0,{"$f":"COUNTIF(Vertices[Out-Degree], \">= \" & H19) - COUNTIF(Vertices[Out-Degree], \">=\" & H20)","v":0},0,{"$f":"COUNTIF(Vertices[Betweenness Centrality], \">= \" & J19) - COUNTIF(Vertices[Betweenness Centrality], \">=\" & J20)","v":0},0,{"$f":"COUNTIF(Vertices[Closeness Centrality], \">= \" & L19) - COUNTIF(Vertices[Closeness Centrality], \">=\" & L20)","v":0},0,{"$f":"COUNTIF(Vertices[Eigenvector Centrality], \">= \" & N19) - COUNTIF(Vertices[Eigenvector Centrality], \">=\" & N20)","v":0},0,{"$f":"COUNTIF(Vertices[PageRank], \">= \" & P19) - COUNTIF(Vertices[PageRank], \">=\" & P20)","v":0},0,{"$f":"COUNTIF(Vertices[Clustering Coefficient], \">= \" & R19) - COUNTIF(Vertices[Clustering Coefficient], \">=\" & R20)","v":0},{"$error":"#REF!"},{"$error":"#REF!"}]
[null,null,null,0,{"$f":"COUNTIF(Vertices[Degree], \">= \" & D20) - COUNTIF(Vertices[Degree], \">=\" & D21)","v":0},0,{"$f":"COUNTIF(Vertices[In-Degree], \">= \" & F20) - COUNTIF(Vertices[In-Degree], \">=\" & F21)","v":0},0,{"$f":"COUNTIF(Vertices[Out-Degree], \">= \" & H20) - COUNTIF(Vertices[Out-Degree], \">=\" & H21)","v":0},0,{"$f":"COUNTIF(Vertices[Betweenness Centrality], \">= \" & J20) - COUNTIF(Vertices[Betweenness Centrality], \">=\" & J21)","v":0},0,{"$f":"COUNTIF(Vertices[Closeness Centrality], \">= \" & L20) - COUNTIF(Vertices[Closeness Centrality], \">=\" & L21)","v":0},0,{"$f":"COUNTIF(Vertices[Eigenvector Centrality], \">= \" & N20) - COUNTIF(Vertices[Eigenvector Centrality], \">=\" & N21)","v":0},0,{"$f":"COUNTIF(Vertices[PageRank], \">= \" & P20) - COUNTIF(Vertices[PageRank], \">=\" & P21)","v":0},0,{"$f":"COUNTIF(Vertices[Clustering Coefficient], \">= \" & R20) - COUNTIF(Vertices[Clustering Coefficient], \">=\" & R21)","v":0},{"$error":"#REF!"},{"$error":"#REF!"}]
[null,null,null,0,{"$f":"COUNTIF(Vertices[Degree], \">= \" & D21) - COUNTIF(Vertices[Degree], \">=\" & D22)","v":0},0,{"$f":"COUNTIF(Vertices[In-Degree], \">= \" & F21) - COUNTIF(Vertices[In-Degree], \">=\" & F22)","v":0},0,{"$f":"COUNTIF(Vertices[Out-Degree], \">= \" & H21) - COUNTIF(Vertices[Out-Degree], \">=\" & H22)","v":0},0,{"$f":"COUNTIF(Vertices[Betweenness Centrality], \">= \" & J21) - COUNTIF(Vertices[Betweenness Centrality], \">=\" & J22)","v":0},0,{"$f":"COUNTIF(Vertices[Closeness Centrality], \">= \" & L21) - COUNTIF(Vertices[Closeness Centrality], \">=\" & L22)","v":0},0,{"$f":"COUNTIF(Vertices[Eigenvector Centrality], \">= \" & N21) - COUNTIF(Vertices[Eigenvector Centrality], \">=\" & N22)","v":0},0,{"$f":"COUNTIF(Vertices[PageRank], \">= \" & P21) - COUNTIF(Vertices[PageRank], \">=\" & P22)","v":0},0,{"$f":"COUNTIF(Vertices[Clustering Coefficient], \">= \" & R21) - COUNTIF(Vertices[Clustering Coefficient], \">=\" & R22)","v":0},{"$error":"#REF!"},{"$error":"#REF!"}]
[null,null,null,0,{"$f":"COUNTIF(Vertices[Degree], \">= \" & D22) - COUNTIF(Vertices[Degree], \">=\" & D23)","v":0},0,{"$f":"COUNTIF(Vertices[In-Degree], \">= \" & F22) - COUNTIF(Vertices[In-Degree], \">=\" & F23)","v":0},0,{"$f":"COUNTIF(Vertices[Out-Degree], \">= \" & H22) - COUNTIF(Vertices[Out-Degree], \">=\" & H23)","v":0},0,{"$f":"COUNTIF(Vertices[Betweenness Centrality], \">= \" & J22) - COUNTIF(Vertices[Betweenness Centrality], \">=\" & J23)","v":0},0,{"$f":"COUNTIF(Vertices[Closeness Centrality], \">= \" & L22) - COUNTIF(Vertices[Closeness Centrality], \">=\" & L23)","v":0},0,{"$f":"COUNTIF(Vertices[Eigenvector Centrality], \">= \" & N22) - COUNTIF(Vertices[Eigenvector Centrality], \">=\" & N23)","v":0},0,{"$f":"COUNTIF(Vertices[PageRank], \">= \" & P22) - COUNTIF(Vertices[PageRank], \">=\" & P23)","v":0},0,{"$f":"COUNTIF(Vertices[Clustering Coefficient], \">= \" & R22) - COUNTIF(Vertices[Clustering Coefficient], \">=\" & R23)","v":0},{"$error":"#REF!"},{"$error":"#REF!"}]
[null,null,null,0,{"$f":"COUNTIF(Vertices[Degree], \">= \" & D23) - COUNTIF(Vertices[Degree], \">=\" & D24)","v":0},0,{"$f":"COUNTIF(Vertices[In-Degree], \">= \" & F23) - COUNTIF(Vertices[In-Degree], \">=\" & F24)","v":0},0,{"$f":"COUNTIF(Vertices[Out-Degree], \">= \" & H23) - COUNTIF(Vertices[Out-Degree], \">=\" & H24)","v":0},0,{"$f":"COUNTIF(Vertices[Betweenness Centrality], \">= \" & J23) - COUNTIF(Vertices[Betweenness Centrality], \">=\" & J24)","v":0},0,{"$f":"COUNTIF(Vertices[Closeness Centrality], \">= \" & L23) - COUNTIF(Vertices[Closeness Centrality], \">=\" & L24)","v":0},0,{"$f":"COUNTIF(Vertices[Eigenvector Centrality], \">= \" & N23) - COUNTIF(Vertices[Eigenvector Centrality], \">=\" & N24)","v":0},0,{"$f":"COUNTIF(Vertices[PageRank], \">= \" & P23) - COUNTIF(Vertices[PageRank], \">=\" & P24)","v":0},0,{"$f":"COUNTIF(Vertices[Clustering Coefficient], \">= \" & R23) - COUNTIF(Vertices[Clustering Coefficient], \">=\" & R24)","v":0},{"$error":"#REF!"},{"$error":"#REF!"}]
[null,null,null,0,{"$f":"COUNTIF(Vertices[Degree], \">= \" & D24) - COUNTIF(Vertices[Degree], \">=\" & D25)","v":0},0,{"$f":"COUNTIF(Vertices[In-Degree], \">= \" & F24) - COUNTIF(Vertices[In-Degree], \">=\" & F25)","v":0},0,{"$f":"COUNTIF(Vertices[Out-Degree], \">= \" & H24) - COUNTIF(Vertices[Out-Degree], \">=\" & H25)","v":0},0,{"$f":"COUNTIF(Vertices[Betweenness Centrality], \">= \" & J24) - COUNTIF(Vertices[Betweenness Centrality], \">=\" & J25)","v":0},0,{"$f":"COUNTIF(Vertices[Closeness Centrality], \">= \" & L24) - COUNTIF(Vertices[Closeness Centrality], \">=\" & L25)","v":0},0,{"$f":"COUNTIF(Vertices[Eigenvector Centrality], \">= \" & N24) - COUNTIF(Vertices[Eigenvector Centrality], \">=\" & N25)","v":0},0,{"$f":"COUNTIF(Vertices[PageRank], \">= \" & P24) - COUNTIF(Vertices[PageRank], \">=\" & P25)","v":0},0,{"$f":"COUNTIF(Vertices[Clustering Coefficient], \">= \" & R24) - COUNTIF(Vertices[Clustering Coefficient], \">=\" & R25)","v":0},{"$error":"#REF!"},{"$error":"#REF!"}]
["Readability Metric","Value",null,0,{"$f":"COUNTIF(Vertices[Degree], \">= \" & D25) - COUNTIF(Vertices[Degree], \">=\" & D26)","v":0},0,{"$f":"COUNTIF(Vertices[In-Degree], \">= \" & F25) - COUNTIF(Vertices[In-Degree], \">=\" & F26)","v":0},0,{"$f":"COUNTIF(Vertices[Out-Degree], \">= \" & H25) - COUNTIF(Vertices[Out-Degree], \">=\" & H26)","v":0},0,{"$f":"COUNTIF(Vertices[Betweenness Centrality], \">= \" & J25) - COUNTIF(Vertices[Betweenness Centrality], \">=\" & J26)","v":0},0,{"$f":"COUNTIF(Vertices[Closeness Centrality], \">= \" & L25) - COUNTIF(Vertices[Closeness Centrality], \">=\" & L26)","v":0},0,{"$f":"COUNTIF(Vertices[Eigenvector Centrality], \">= \" & N25) - COUNTIF(Vertices[Eigenvector Centrality], \">=\" & N26)","v":0},0,{"$f":"COUNTIF(Vertices[PageRank], \">= \" & P25) - COUNTIF(Vertices[PageRank], \">=\" & P26)","v":0},0,{"$f":"COUNTIF(Vertices[Clustering Coefficient], \">= \" & R25) - COUNTIF(Vertices[Clustering Coefficient], \">=\" & R26)","v":0},{"$error":"#REF!"},{"$error":"#REF!"}]
[null,null,null,0,{"$f":"COUNTIF(Vertices[Degree], \">= \" & D26) - COUNTIF(Vertices[Degree], \">=\" & D27)","v":0},0,{"$f":"COUNTIF(Vertices[In-Degree], \">= \" & F26) - COUNTIF(Vertices[In-Degree], \">=\" & F27)","v":0},0,{"$f":"COUNTIF(Vertices[Out-Degree], \">= \" & H26) - COUNTIF(Vertices[Out-Degree], \">=\" & H27)","v":0},0,{"$f":"COUNTIF(Vertices[Betweenness Centrality], \">= \" & J26) - COUNTIF(Vertices[Betweenness Centrality], \">=\" & J27)","v":0},0,{"$f":"COUNTIF(Vertices[Closeness Centrality], \">= \" & L26) - COUNTIF(Vertices[Closeness Centrality], \">=\" & L27)","v":0},0,{"$f":"COUNTIF(Vertices[Eigenvector Centrality], \">= \" & N26) - COUNTIF(Vertices[Eigenvector Centrality], \">=\" & N27)","v":0},0,{"$f":"COUNTIF(Vertices[PageRank], \">= \" & P26) - COUNTIF(Vertices[PageRank], \">=\" & P27)","v":0},0,{"$f":"COUNTIF(Vertices[Clustering Coefficient], \">= \" & R26) - COUNTIF(Vertices[Clustering Coefficient], \">=\" & R27)","v":0},{"$error":"#REF!"},{"$error":"#REF!"}]
[null,null,null,0,{"$f":"COUNTIF(Vertices[Degree], \">= \" & D27) - COUNTIF(Vertices[Degree], \">=\" & D28)","v":0},0,{"$f":"COUNTIF(Vertices[In-Degree], \">= \" & F27) - COUNTIF(Vertices[In-Degree], \">=\" & F28)","v":0},0,{"$f":"COUNTIF(Vertices[Out-Degree], \">= \" & H27) - COUNTIF(Vertices[Out-Degree], \">=\" & H28)","v":0},0,{"$f":"COUNTIF(Vertices[Betweenness Centrality], \">= \" & J27) - COUNTIF(Vertices[Betweenness Centrality], \">=\" & J28)","v":0},0,{"$f":"COUNTIF(Vertices[Closeness Centrality], \">= \" & L27) - COUNTIF(Vertices[Closeness Centrality], \">=\" & L28)","v":0},0,{"$f":"COUNTIF(Vertices[Eigenvector Centrality], \">= \" & N27) - COUNTIF(Vertices[Eigenvector Centrality], \">=\" & N28)","v":0},0,{"$f":"COUNTIF(Vertices[PageRank], \">= \" & P27) - COUNTIF(Vertices[PageRank], \">=\" & P28)","v":0},0,{"$f":"COUNTIF(Vertices[Clustering Coefficient], \">= \" & R27) - COUNTIF(Vertices[Clustering Coefficient], \">=\" & R28)","v":0},{"$error":"#REF!"},{"$error":"#REF!"}]
[null,null,null,0,{"$f":"COUNTIF(Vertices[Degree], \">= \" & D28) - COUNTIF(Vertices[Degree], \">=\" & D29)","v":0},0,{"$f":"COUNTIF(Vertices[In-Degree], \">= \" & F28) - COUNTIF(Vertices[In-Degree], \">=\" & F29)","v":0},0,{"$f":"COUNTIF(Vertices[Out-Degree], \">= \" & H28) - COUNTIF(Vertices[Out-Degree], \">=\" & H29)","v":0},0,{"$f":"COUNTIF(Vertices[Betweenness Centrality], \">= \" & J28) - COUNTIF(Vertices[Betweenness Centrality], \">=\" & J29)","v":0},0,{"$f":"COUNTIF(Vertices[Closeness Centrality], \">= \" & L28) - COUNTIF(Vertices[Closeness Centrality], \">=\" & L29)","v":0},0,{"$f":"COUNTIF(Vertices[Eigenvector Centrality], \">= \" & N28) - COUNTIF(Vertices[Eigenvector Centrality], \">=\" & N29)","v":0},0,{"$f":"COUNTIF(Vertices[PageRank], \">= \" & P28) - COUNTIF(Vertices[PageRank], \">=\" & P29)","v":0},0,{"$f":"COUNTIF(Vertices[Clustering Coefficient], \">= \" & R28) - COUNTIF(Vertices[Clustering Coefficient], \">=\" & R29)","v":0},{"$error":"#REF!"},{"$error":"#REF!"}]
[null,null,null,0,{"$f":"COUNTIF(Vertices[Degree], \">= \" & D29) - COUNTIF(Vertices[Degree], \">=\" & D30)","v":0},0,{"$f":"COUNTIF(Vertices[In-Degree], \">= \" & F29) - COUNTIF(Vertices[In-Degree], \">=\" & F30)","v":0},0,{"$f":"COUNTIF(Vertices[Out-Degree], \">= \" & H29) - COUNTIF(Vertices[Out-Degree], \">=\" & H30)","v":0},0,{"$f":"COUNTIF(Vertices[Betweenness Centrality], \">= \" & J29) - COUNTIF(Vertices[Betweenness Centrality], \">=\" & J30)","v":0},0,{"$f":"COUNTIF(Vertices[Closeness Centrality], \">= \" & L29) - COUNTIF(Vertices[Closeness Centrality], \">=\" & L30)","v":0},0,{"$f":"COUNTIF(Vertices[Eigenvector Centrality], \">= \" & N29) - COUNTIF(Vertices[Eigenvector Centrality], \">=\" & N30)","v":0},0,{"$f":"COUNTIF(Vertices[PageRank], \">= \" & P29) - COUNTIF(Vertices[PageRank], \">=\" & P30)","v":0},0,{"$f":"COUNTIF(Vertices[Clustering Coefficient], \">= \" & R29) - COUNTIF(Vertices[Clustering Coefficient], \">=\" & R30)","v":0},{"$error":"#REF!"},{"$error":"#REF!"}]
[null,null,null,0,{"$f":"COUNTIF(Vertices[Degree], \">= \" & D30) - COUNTIF(Vertices[Degree], \">=\" & D31)","v":0},0,{"$f":"COUNTIF(Vertices[In-Degree], \">= \" & F30) - COUNTIF(Vertices[In-Degree], \">=\" & F31)","v":0},0,{"$f":"COUNTIF(Vertices[Out-Degree], \">= \" & H30) - COUNTIF(Vertices[Out-Degree], \">=\" & H31)","v":0},0,{"$f":"COUNTIF(Vertices[Betweenness Centrality], \">= \" & J30) - COUNTIF(Vertices[Betweenness Centrality], \">=\" & J31)","v":0},0,{"$f":"COUNTIF(Vertices[Closeness Centrality], \">= \" & L30) - COUNTIF(Vertices[Closeness Centrality], \">=\" & L31)","v":0},0,{"$f":"COUNTIF(Vertices[Eigenvector Centrality], \">= \" & N30) - COUNTIF(Vertices[Eigenvector Centrality], \">=\" & N31)","v":0},0,{"$f":"COUNTIF(Vertices[PageRank], \">= \" & P30) - COUNTIF(Vertices[PageRank], \">=\" & P31)","v":0},0,{"$f":"COUNTIF(Vertices[Clustering Coefficient], \">= \" & R30) - COUNTIF(Vertices[Clustering Coefficient], \">=\" & R31)","v":0},{"$error":"#REF!"},{"$error":"#REF!"}]
[null,null,null,0,{"$f":"COUNTIF(Vertices[Degree], \">= \" & D31) - COUNTIF(Vertices[Degree], \">=\" & D32)","v":0},0,{"$f":"COUNTIF(Vertices[In-Degree], \">= \" & F31) - COUNTIF(Vertices[In-Degree], \">=\" & F32)","v":0},0,{"$f":"COUNTIF(Vertices[Out-Degree], \">= \" & H31) - COUNTIF(Vertices[Out-Degree], \">=\" & H32)","v":0},0,{"$f":"COUNTIF(Vertices[Betweenness Centrality], \">= \" & J31) - COUNTIF(Vertices[Betweenness Centrality], \">=\" & J32)","v":0},0,{"$f":"COUNTIF(Vertices[Closeness Centrality], \">= \" & L31) - COUNTIF(Vertices[Closeness Centrality], \">=\" & L32)","v":0},0,{"$f":"COUNTIF(Vertices[Eigenvector Centrality], \">= \" & N31) - COUNTIF(Vertices[Eigenvector Centrality], \">=\" & N32)","v":0},0,{"$f":"COUNTIF(Vertices[PageRank], \">= \" & P31) - COUNTIF(Vertices[PageRank], \">=\" & P32)","v":0},0,{"$f":"COUNTIF(Vertices[Clustering Coefficient], \">= \" & R31) - COUNTIF(Vertices[Clustering Coefficient], \">=\" & R32)","v":0},{"$error":"#REF!"},{"$error":"#REF!"}]
[null,null,null,0,{"$f":"COUNTIF(Vertices[Degree], \">= \" & D32) - COUNTIF(Vertices[Degree], \">=\" & D33)","v":0},0,{"$f":"COUNTIF(Vertices[In-Degree], \">= \" & F32) - COUNTIF(Vertices[In-Degree], \">=\" & F33)","v":0},0,{"$f":"COUNTIF(Vertices[Out-Degree], \">= \" & H32) - COUNTIF(Vertices[Out-Degree], \">=\" & H33)","v":0},0,{"$f":"COUNTIF(Vertices[Betweenness Centrality], \">= \" & J32) - COUNTIF(Vertices[Betweenness Centrality], \">=\" & J33)","v":0},0,{"$f":"COUNTIF(Vertices[Closeness Centrality], \">= \" & L32) - COUNTIF(Vertices[Closeness Centrality], \">=\" & L33)","v":0},0,{"$f":"COUNTIF(Vertices[Eigenvector Centrality], \">= \" & N32) - COUNTIF(Vertices[Eigenvector Centrality], \">=\" & N33)","v":0},0,{"$f":"COUNTIF(Vertices[PageRank], \">= \" & P32) - COUNTIF(Vertices[PageRank], \">=\" & P33)","v":0},0,{"$f":"COUNTIF(Vertices[Clustering Coefficient], \">= \" & R32) - COUNTIF(Vertices[Clustering Coefficient], \">=\" & R33)","v":0},{"$error":"#REF!"},{"$error":"#REF!"}]
[null,null,null,0,{"$f":"COUNTIF(Vertices[Degree], \">= \" & D33) - COUNTIF(Vertices[Degree], \">=\" & D34)","v":0},0,{"$f":"COUNTIF(Vertices[In-Degree], \">= \" & F33) - COUNTIF(Vertices[In-Degree], \">=\" & F34)","v":0},0,{"$f":"COUNTIF(Vertices[Out-Degree], \">= \" & H33) - COUNTIF(Vertices[Out-Degree], \">=\" & H34)","v":0},0,{"$f":"COUNTIF(Vertices[Betweenness Centrality], \">= \" & J33) - COUNTIF(Vertices[Betweenness Centrality], \">=\" & J34)","v":0},0,{"$f":"COUNTIF(Vertices[Closeness Centrality], \">= \" & L33) - COUNTIF(Vertices[Closeness Centrality], \">=\" & L34)","v":0},0,{"$f":"COUNTIF(Vertices[Eigenvector Centrality], \">= \" & N33) - COUNTIF(Vertices[Eigenvector Centrality], \">=\" & N34)","v":0},0,{"$f":"COUNTIF(Vertices[PageRank], \">= \" & P33) - COUNTIF(Vertices[PageRank], \">=\" & P34)","v":0},0,{"$f":"COUNTIF(Vertices[Clustering Coefficient], \">= \" & R33) - COUNTIF(Vertices[Clustering Coefficient], \">=\" & R34)","v":0},{"$error":"#REF!"},{"$error":"#REF!"}]
[null,null,null,0,{"$f":"COUNTIF(Vertices[Degree], \">= \" & D34) - COUNTIF(Vertices[Degree], \">=\" & D35)","v":0},0,{"$f":"COUNTIF(Vertices[In-Degree], \">= \" & F34) - COUNTIF(Vertices[In-Degree], \">=\" & F35)","v":0},0,{"$f":"COUNTIF(Vertices[Out-Degree], \">= \" & H34) - COUNTIF(Vertices[Out-Degree], \">=\" & H35)","v":0},0,{"$f":"COUNTIF(Vertices[Betweenness Centrality], \">= \" & J34) - COUNTIF(Vertices[Betweenness Centrality], \">=\" & J35)","v":0},0,{"$f":"COUNTIF(Vertices[Closeness Centrality], \">= \" & L34) - COUNTIF(Vertices[Closeness Centrality], \">=\" & L35)","v":0},0,{"$f":"COUNTIF(Vertices[Eigenvector Centrality], \">= \" & N34) - COUNTIF(Vertices[Eigenvector Centrality], \">=\" & N35)","v":0},0,{"$f":"COUNTIF(Vertices[PageRank], \">= \" & P34) - COUNTIF(Vertices[PageRank], \">=\" & P35)","v":0},0,{"$f":"COUNTIF(Vertices[Clustering Coefficient], \">= \" & R34) - COUNTIF(Vertices[Clustering Coefficient], \">=\" & R35)","v":0},{"$error":"#REF!"},{"$error":"#REF!"}]
[null,null,null,0,{"$f":"COUNTIF(Vertices[Degree], \">= \" & D35) - COUNTIF(Vertices[Degree], \">=\" & D36)","v":0},0,{"$f":"COUNTIF(Vertices[In-Degree], \">= \" & F35) - COUNTIF(Vertices[In-Degree], \">=\" & F36)","v":0},0,{"$f":"COUNTIF(Vertices[Out-Degree], \">= \" & H35) - COUNTIF(Vertices[Out-Degree], \">=\" & H36)","v":0},0,{"$f":"COUNTIF(Vertices[Betweenness Centrality], \">= \" & J35) - COUNTIF(Vertices[Betweenness Centrality], \">=\" & J36)","v":0},0,{"$f":"COUNTIF(Vertices[Closeness Centrality], \">= \" & L35) - COUNTIF(Vertices[Closeness Centrality], \">=\" & L36)","v":0},0,{"$f":"COUNTIF(Vertices[Eigenvector Centrality], \">= \" & N35) - COUNTIF(Vertices[Eigenvector Centrality], \">=\" & N36)","v":0},0,{"$f":"COUNTIF(Vertices[PageRank], \">= \" & P35) - COUNTIF(Vertices[PageRank], \">=\" & P36)","v":0},0,{"$f":"COUNTIF(Vertices[Clustering Coefficient], \">= \" & R35) - COUNTIF(Vertices[Clustering Coefficient], \">=\" & R36)","v":0},{"$error":"#REF!"},{"$error":"#REF!"}]
[null,null,null,0,{"$f":"COUNTIF(Vertices[Degree], \">= \" & D36) - COUNTIF(Vertices[Degree], \">=\" & D37)","v":0},0,{"$f":"COUNTIF(Vertices[In-Degree], \">= \" & F36) - COUNTIF(Vertices[In-Degree], \">=\" & F37)","v":0},0,{"$f":"COUNTIF(Vertices[Out-Degree], \">= \" & H36) - COUNTIF(Vertices[Out-Degree], \">=\" & H37)","v":0},0,{"$f":"COUNTIF(Vertices[Betweenness Centrality], \">= \" & J36) - COUNTIF(Vertices[Betweenness Centrality], \">=\" & J37)","v":0},0,{"$f":"COUNTIF(Vertices[Closeness Centrality], \">= \" & L36) - COUNTIF(Vertices[Closeness Centrality], \">=\" & L37)","v":0},0,{"$f":"COUNTIF(Vertices[Eigenvector Centrality], \">= \" & N36) - COUNTIF(Vertices[Eigenvector Centrality], \">=\" & N37)","v":0},0,{"$f":"COUNTIF(Vertices[PageRank], \">= \" & P36) - COUNTIF(Vertices[PageRank], \">=\" & P37)","v":0},0,{"$f":"COUNTIF(Vertices[Clustering Coefficient], \">= \" & R36) - COUNTIF(Vertices[Clustering Coefficient], \">=\" & R37)","v":0},{"$error":"#REF!"},{"$error":"#REF!"}]
[null,null,null,0,{"$f":"COUNTIF(Vertices[Degree], \">= \" & D37) - COUNTIF(Vertices[Degree], \">=\" & D38)","v":0},0,{"$f":"COUNTIF(Vertices[In-Degree], \">= \" & F37) - COUNTIF(Vertices[In-Degree], \">=\" & F38)","v":0},0,{"$f":"COUNTIF(Vertices[Out-Degree], \">= \" & H37) - COUNTIF(Vertices[Out-Degree], \">=\" & H38)","v":0},0,{"$f":"COUNTIF(Vertices[Betweenness Centrality], \">= \" & J37) - COUNTIF(Vertices[Betweenness Centrality], \">=\" & J38)","v":0},0,{"$f":"COUNTIF(Vertices[Closeness Centrality], \">= \" & L37) - COUNTIF(Vertices[Closeness Centrality], \">=\" & L38)","v":0},0,{"$f":"COUNTIF(Vertices[Eigenvector Centrality], \">= \" & N37) - COUNTIF(Vertices[Eigenvector Centrality], \">=\" & N38)","v":0},0,{"$f":"COUNTIF(Vertices[PageRank], \">= \" & P37) - COUNTIF(Vertices[PageRank], \">=\" & P38)","v":0},0,{"$f":"COUNTIF(Vertices[Clustering Coefficient], \">= \" & R37) - COUNTIF(Vertices[Clustering Coefficient], \">=\" & R38)","v":0},{"$error":"#REF!"},{"$error":"#REF!"}]
["Minimum Degree",{"$f":"IF(COUNT(Vertices[Degree])>0, D2, NoMetricMessage)","v":"Not Available"},null,0,{"$f":"COUNTIF(Vertices[Degree], \">= \" & D38) - COUNTIF(Vertices[Degree], \">=\" & D39)","v":0},0,{"$f":"COUNTIF(Vertices[In-Degree], \">= \" & F38) - COUNTIF(Vertices[In-Degree], \">=\" & F39)","v":0},0,{"$f":"COUNTIF(Vertices[Out-Degree], \">= \" & H38) - COUNTIF(Vertices[Out-Degree], \">=\" & H39)","v":0},0,{"$f":"COUNTIF(Vertices[Betweenness Centrality], \">= \" & J38) - COUNTIF(Vertices[Betweenness Centrality], \">=\" & J39)","v":0},0,{"$f":"COUNTIF(Vertices[Closeness Centrality], \">= \" & L38) - COUNTIF(Vertices[Closeness Centrality], \">=\" & L39)","v":0},0,{"$f":"COUNTIF(Vertices[Eigenvector Centrality], \">= \" & N38) - COUNTIF(Vertices[Eigenvector Centrality], \">=\" & N39)","v":0},0,{"$f":"COUNTIF(Vertices[PageRank], \">= \" & P38) - COUNTIF(Vertices[PageRank], \">=\" & P39)","v":0},0,{"$f":"COUNTIF(Vertices[Clustering Coefficient], \">= \" & R38) - COUNTIF(Vertices[Clustering Coefficient], \">=\" & R39)","v":0},{"$error":"#REF!"},{"$error":"#REF!"}]
["Maximum Degree",{"$f":"IF(COUNT(Vertices[Degree])>0, D45, NoMetricMessage)","v":"Not Available"},null,0,{"$f":"COUNTIF(Vertices[Degree], \">= \" & D39) - COUNTIF(Vertices[Degree], \">=\" & D40)","v":0},0,{"$f":"COUNTIF(Vertices[In-Degree], \">= \" & F39) - COUNTIF(Vertices[In-Degree], \">=\" & F40)","v":0},0,{"$f":"COUNTIF(Vertices[Out-Degree], \">= \" & H39) - COUNTIF(Vertices[Out-Degree], \">=\" & H40)","v":0},0,{"$f":"COUNTIF(Vertices[Betweenness Centrality], \">= \" & J39) - COUNTIF(Vertices[Betweenness Centrality], \">=\" & J40)","v":0},0,{"$f":"COUNTIF(Vertices[Closeness Centrality], \">= \" & L39) - COUNTIF(Vertices[Closeness Centrality], \">=\" & L40)","v":0},0,{"$f":"COUNTIF(Vertices[Eigenvector Centrality], \">= \" & N39) - COUNTIF(Vertices[Eigenvector Centrality], \">=\" & N40)","v":0},0,{"$f":"COUNTIF(Vertices[PageRank], \">= \" & P39) - COUNTIF(Vertices[PageRank], \">=\" & P40)","v":0},0,{"$f":"COUNTIF(Vertices[Clustering Coefficient], \">= \" & R39) - COUNTIF(Vertices[Clustering Coefficient], \">=\" & R40)","v":0},{"$error":"#REF!"},{"$error":"#REF!"}]
["Average Degree",{"$f":"IFERROR(AVERAGE(Vertices[Degree]),NoMetricMessage)","v":"Not Available"},null,0,{"$f":"COUNTIF(Vertices[Degree], \">= \" & D40) - COUNTIF(Vertices[Degree], \">=\" & D41)","v":0},0,{"$f":"COUNTIF(Vertices[In-Degree], \">= \" & F40) - COUNTIF(Vertices[In-Degree], \">=\" & F41)","v":0},0,{"$f":"COUNTIF(Vertices[Out-Degree], \">= \" & H40) - COUNTIF(Vertices[Out-Degree], \">=\" & H41)","v":0},0,{"$f":"COUNTIF(Vertices[Betweenness Centrality], \">= \" & J40) - COUNTIF(Vertices[Betweenness Centrality], \">=\" & J41)","v":0},0,{"$f":"COUNTIF(Vertices[Closeness Centrality], \">= \" & L40) - COUNTIF(Vertices[Closeness Centrality], \">=\" & L41)","v":0},0,{"$f":"COUNTIF(Vertices[Eigenvector Centrality], \">= \" & N40) - COUNTIF(Vertices[Eigenvector Centrality], \">=\" & N41)","v":0},0,{"$f":"COUNTIF(Vertices[PageRank], \">= \" & P40) - COUNTIF(Vertices[PageRank], \">=\" & P41)","v":0},0,{"$f":"COUNTIF(Vertices[Clustering Coefficient], \">= \" & R40) - COUNTIF(Vertices[Clustering Coefficient], \">=\" & R41)","v":0},{"$error":"#REF!"},{"$error":"#REF!"}]
["Median Degree",{"$f":"IFERROR(MEDIAN(Vertices[Degree]),NoMetricMessage)","v":"Not Available"},null,0,{"$f":"COUNTIF(Vertices[Degree], \">= \" & D41) - COUNTIF(Vertices[Degree], \">=\" & D42)","v":0},0,{"$f":"COUNTIF(Vertices[In-Degree], \">= \" & F41) - COUNTIF(Vertices[In-Degree], \">=\" & F42)","v":0},0,{"$f":"COUNTIF(Vertices[Out-Degree], \">= \" & H41) - COUNTIF(Vertices[Out-Degree], \">=\" & H42)","v":0},0,{"$f":"COUNTIF(Vertices[Betweenness Centrality], \">= \" & J41) - COUNTIF(Vertices[Betweenness Centrality], \">=\" & J42)","v":0},0,{"$f":"COUNTIF(Vertices[Closeness Centrality], \">= \" & L41) - COUNTIF(Vertices[Closeness Centrality], \">=\" & L42)","v":0},0,{"$f":"COUNTIF(Vertices[Eigenvector Centrality], \">= \" & N41) - COUNTIF(Vertices[Eigenvector Centrality], \">=\" & N42)","v":0},0,{"$f":"COUNTIF(Vertices[PageRank], \">= \" & P41) - COUNTIF(Vertices[PageRank], \">=\" & P42)","v":0},0,{"$f":"COUNTIF(Vertices[Clustering Coefficient], \">= \" & R41) - COUNTIF(Vertices[Clustering Coefficient], \">=\" & R42)","v":0},{"$error":"#REF!"},{"$error":"#REF!"}]
[null,null,null,0,{"$f":"COUNTIF(Vertices[Degree], \">= \" & D42) - COUNTIF(Vertices[Degree], \">=\" & D43)","v":0},0,{"$f":"COUNTIF(Vertices[In-Degree], \">= \" & F42) - COUNTIF(Vertices[In-Degree], \">=\" & F43)","v":0},0,{"$f":"COUNTIF(Vertices[Out-Degree], \">= \" & H42) - COUNTIF(Vertices[Out-Degree], \">=\" & H43)","v":0},0,{"$f":"COUNTIF(Vertices[Betweenness Centrality], \">= \" & J42) - COUNTIF(Vertices[Betweenness Centrality], \">=\" & J43)","v":0},0,{"$f":"COUNTIF(Vertices[Closeness Centrality], \">= \" & L42) - COUNTIF(Vertices[Closeness Centrality], \">=\" & L43)","v":0},0,{"$f":"COUNTIF(Vertices[Eigenvector Centrality], \">= \" & N42) - COUNTIF(Vertices[Eigenvector Centrality], \">=\" & N43)","v":0},0,{"$f":"COUNTIF(Vertices[PageRank], \">= \" & P42) - COUNTIF(Vertices[PageRank], \">=\" & P43)","v":0},0,{"$f":"COUNTIF(Vertices[Clustering Coefficient], \">= \" & R42) - COUNTIF(Vertices[Clustering Coefficient], \">=\" & R43)","v":0},{"$error":"#REF!"},{"$error":"#REF!"}]
[null,null,null,0,{"$f":"COUNTIF(Vertices[Degree], \">= \" & D43) - COUNTIF(Vertices[Degree], \">=\" & D44)","v":0},0,{"$f":"COUNTIF(Vertices[In-Degree], \">= \" & F43) - COUNTIF(Vertices[In-Degree], \">=\" & F44)","v":0},0,{"$f":"COUNTIF(Vertices[Out-Degree], \">= \" & H43) - COUNTIF(Vertices[Out-Degree], \">=\" & H44)","v":0},0,{"$f":"COUNTIF(Vertices[Betweenness Centrality], \">= \" & J43) - COUNTIF(Vertices[Betweenness Centrality], \">=\" & J44)","v":0},0,{"$f":"COUNTIF(Vertices[Closeness Centrality], \">= \" & L43) - COUNTIF(Vertices[Closeness Centrality], \">=\" & L44)","v":0},0,{"$f":"COUNTIF(Vertices[Eigenvector Centrality], \">= \" & N43) - COUNTIF(Vertices[Eigenvector Centrality], \">=\" & N44)","v":0},0,{"$f":"COUNTIF(Vertices[PageRank], \">= \" & P43) - COUNTIF(Vertices[PageRank], \">=\" & P44)","v":0},0,{"$f":"COUNTIF(Vertices[Clustering Coefficient], \">= \" & R43) - COUNTIF(Vertices[Clustering Coefficient], \">=\" & R44)","v":0},{"$error":"#REF!"},{"$error":"#REF!"}]
[null,null,null,0,{"$f":"COUNTIF(Vertices[Degree], \">= \" & D44) - COUNTIF(Vertices[Degree], \">=\" & D45)","v":0},0,{"$f":"COUNTIF(Vertices[In-Degree], \">= \" & F44) - COUNTIF(Vertices[In-Degree], \">=\" & F45)","v":0},0,{"$f":"COUNTIF(Vertices[Out-Degree], \">= \" & H44) - COUNTIF(Vertices[Out-Degree], \">=\" & H45)","v":0},0,{"$f":"COUNTIF(Vertices[Betweenness Centrality], \">= \" & J44) - COUNTIF(Vertices[Betweenness Centrality], \">=\" & J45)","v":0},0,{"$f":"COUNTIF(Vertices[Closeness Centrality], \">= \" & L44) - COUNTIF(Vertices[Closeness Centrality], \">=\" & L45)","v":0},0,{"$f":"COUNTIF(Vertices[Eigenvector Centrality], \">= \" & N44) - COUNTIF(Vertices[Eigenvector Centrality], \">=\" & N45)","v":0},0,{"$f":"COUNTIF(Vertices[PageRank], \">= \" & P44) - COUNTIF(Vertices[PageRank], \">=\" & P45)","v":0},0,{"$f":"COUNTIF(Vertices[Clustering Coefficient], \">= \" & R44) - COUNTIF(Vertices[Clustering Coefficient], \">=\" & R45)","v":0},{"$error":"#REF!"},{"$error":"#REF!"}]
[null,null,null,{"$f":"MAX(Vertices[Degree])","v":0},{"$f":"COUNTIF(Vertices[Degree], \">= \" & D45) - COUNTIF(Vertices[Degree], \">=\" & D46)","v":0},{"$f":"MAX(Vertices[In-Degree])","v":0},{"$f":"COUNTIF(Vertices[In-Degree], \">= \" & F45) - COUNTIF(Vertices[In-Degree], \">=\" & F46)","v":0},{"$f":"MAX(Vertices[Out-Degree])","v":0},{"$f":"COUNTIF(Vertices[Out-Degree], \">= \" & H45) - COUNTIF(Vertices[Out-Degree], \">=\" & H46)","v":0},{"$f":"MAX(Vertices[Betweenness Centrality])","v":0},{"$f":"COUNTIF(Vertices[Betweenness Centrality], \">= \" & J45) - COUNTIF(Vertices[Betweenness Centrality], \">=\" & J46)","v":0},{"$f":"MAX(Vertices[Closeness Centrality])","v":0},{"$f":"COUNTIF(Vertices[Closeness Centrality], \">= \" & L45) - COUNTIF(Vertices[Closeness Centrality], \">=\" & L46)","v":0},{"$f":"MAX(Vertices[Eigenvector Centrality])","v":0},{"$f":"COUNTIF(Vertices[Eigenvector Centrality], \">= \" & N45) - COUNTIF(Vertices[Eigenvector Centrality], \">=\" & N46)","v":0},{"$f":"MAX(Vertices[PageRank])","v":0},{"$f":"COUNTIF(Vertices[PageRank], \">= \" & P45) - COUNTIF(Vertices[PageRank], \">=\" & P46)","v":0},{"$f":"MAX(Vertices[Clustering Coefficient])","v":0},{"$f":"COUNTIF(Vertices[Clustering Coefficient], \">= \" & R45) - COUNTIF(Vertices[Clustering Coefficient], \">=\" & R46)","v":0},{"$f":"MAX(INDIRECT(DynamicFilterSourceColumnRange))","v":{"$error":"#REF!"}},{"$error":"#REF!"}]
[]
[]
[]
[]
[]
[]
["Minimum In-Degree",{"$f":"IF(COUNT(Vertices[In-Degree])>0, F2, NoMetricMessage)","v":"Not Available"}]
["Maximum In-Degree",{"$f":"IF(COUNT(Vertices[In-Degree])>0, F45, NoMetricMessage)","v":"Not Available"}]
["Average In-Degree",{"$f":"IFERROR(AVERAGE(Vertices[In-Degree]),NoMetricMessage)","v":"Not Available"}]
["Median In-Degree",{"$f":"IFERROR(MEDIAN(Vertices[In-Degree]),NoMetricMessage)","v":"Not Available"}]
[]
[]
[]
[]
[]
[]
[]
[]
[]
[]
["Minimum Out-Degree",{"$f":"IF(COUNT(Vertices[Out-Degree])>0, H2, NoMetricMessage)","v":"Not Available"}]
["Maximum Out-Degree",{"$f":"IF(COUNT(Vertices[Out-Degree])>0, H45, NoMetricMessage)","v":"Not Available"}]
["Average Out-Degree",{"$f":"IFERROR(AVERAGE(Vertices[Out-Degree]),NoMetricMessage)","v":"Not Available"}]
["Median Out-Degree",{"$f":"IFERROR(MEDIAN(Vertices[Out-Degree]),NoMetricMessage)","v":"Not Available"}]
[]
[]
[]
[]
[]
[]
[]
[]
[]
[]
["Minimum Betweenness Centrality",{"$f":"IF(COUNT(Vertices[Betweenness Centrality])>0, J2, NoMetricMessage)","v":"Not Available"}]
["Maximum Betweenness Centrality",{"$f":"IF(COUNT(Vertices[Betweenness Centrality])>0, J45, NoMetricMessage)","v":"Not Available"}]
["Average Betweenness Centrality",{"$f":"IFERROR(AVERAGE(Vertices[Betweenness Centrality]),NoMetricMessage)","v":"Not Available"}]
["Median Betweenness Centrality",{"$f":"IFERROR(MEDIAN(Vertices[Betweenness Centrality]),NoMetricMessage)","v":"Not Available"}]
[]
[]
[]
[]
[]
[]
[]
[]
[]
[]
["Minimum Closeness Centrality",{"$f":"IF(COUNT(Vertices[Closeness Centrality])>0, L2, NoMetricMessage)","v":"Not Available"}]
["Maximum Closeness Centrality",{"$f":"IF(COUNT(Vertices[Closeness Centrality])>0, L45, NoMetricMessage)","v":"Not Available"}]
["Average Closeness Centrality",{"$f":"IFERROR(AVERAGE(Vertices[Closeness Centrality]),NoMetricMessage)","v":"Not Available"}]
["Median Closeness Centrality",{"$f":"IFERROR(MEDIAN(Vertices[Closeness Centrality]),NoMetricMessage)","v":"Not Available"}]
[]
[]
[]
[]
[]
[]
[]
[]
[]
[]
["Minimum Eigenvector Centrality",{"$f":"IF(COUNT(Vertices[Eigenvector Centrality])>0, N2, NoMetricMessage)","v":"Not Available"}]
["Maximum Eigenvector Centrality",{"$f":"IF(COUNT(Vertices[Eigenvector Centrality])>0, N45, NoMetricMessage)","v":"Not Available"}]
["Average Eigenvector Centrality",{"$f":"IFERROR(AVERAGE(Vertices[Eigenvector Centrality]),NoMetricMessage)","v":"Not Available"}]
["Median Eigenvector Centrality",{"$f":"IFERROR(MEDIAN(Vertices[Eigenvector Centrality]),NoMetricMessage)","v":"Not Available"}]
[]
[]
[]
[]
[]
[]
[]
[]
[]
[]
["Minimum PageRank",{"$f":"IF(COUNT(Vertices[PageRank])>0, P2, NoMetricMessage)","v":"Not Available"}]
["Maximum PageRank",{"$f":"IF(COUNT(Vertices[PageRank])>0, P45, NoMetricMessage)","v":"Not Available"}]
["Average PageRank",{"$f":"IFERROR(AVERAGE(Vertices[PageRank]),NoMetricMessage)","v":"Not Available"}]
["Median PageRank",{"$f":"IFERROR(MEDIAN(Vertices[PageRank]),NoMetricMessage)","v":"Not Available"}]
[]
[]
[]
[]
[]
[]
[]
[]
[]
[]
["Minimum Clustering Coefficient",{"$f":"IF(COUNT(Vertices[Clustering Coefficient])>0, R2, NoMetricMessage)","v":"Not Available"}]
["Maximum Clustering Coefficient",{"$f":"IF(COUNT(Vertices[Clustering Coefficient])>0, R45, NoMetricMessage)","v":"Not Available"}]
["Average Clustering Coefficient",{"$f":"IFERROR(AVERAGE(Vertices[Clustering Coefficient]),NoMetricMessage)","v":"Not Available"}]
["Median Clustering Coefficient",{"$f":"IFERROR(MEDIAN(Vertices[Clustering Coefficient]),NoMetricMessage)","v":"Not Available"}]

{"sheet":"Misc","index":6,"n_rows":23,"n_cols":17,"rows_kept":23,"cut":false,"hidden":true,"merged":[]}
["Valid Edge Visibilities","Valid Edge Styles","Valid Vertex Visibilities","Valid Vertex Shapes","Valid Group Shapes","Valid Booleans Default False","Valid Vertex Label Positions",null,"Per-Workbook Setting","Value",null,"Table Name","Column Name","Selected Minimum","Selected Maximum"]
["Show","Solid","Show if in an Edge","Circle","Circle","No","Nowhere",null,"Template Version",91]
["Skip","Dash","Skip","Disk","Disk","Yes","Top Left",null,"Filtered Alpha",0]
["Hide","Dot","Hide","Sphere","Sphere",0,"Top Center",null,"Graph Directedness","Directed"]
[1,"Dash Dot","Show","Square","Square",1,"Top Right",null,"Show Edge Visual Attributes",true]
[0,"Dash Dot Dot",1,"Solid Square","Solid Square",null,"Middle Left",null,"Show Edge Labels",true,null,null,null,null,null,null,"The empty chart above is used to create histogram images for dynamic filters.  It is associated with two columns in the HistogramBins table on the Overall Metrics worksheet, and on the HistogramProperties table on that worksheet.  The chart is on this worksheet instead of the more logical Overall Metrics worksheet because the chart must be visible for a histogram image to be created.  If the chart where in Overall Metrics in a visible range the user would see it, whereas the user never sees this Misc worksheet because the entire worksheet is hidden. "]
[2,1,0,"Diamond","Diamond",null,"Middle Center",null,"Show Edge Other Columns",true]
[null,2,2,"Solid Diamond","Solid Diamond",null,"Middle Right",null,"Show Vertex Graph Metrics",false]
[null,3,4,"Triangle","Triangle",null,"Bottom Left",null,"Show Vertex Visual Attributes",true]
[null,4,null,"Solid Triangle","Solid Triangle",null,"Bottom Center",null,"Show Vertex Labels",true]
[null,5,null,"Label",1,null,"Bottom Right",null,"Show Vertex Layout",false]
[null,null,null,"Image",2,null,0,null,"Show Vertex Other Columns",true]
[null,null,null,1,3,null,1,null,"Show Group Visual Attributes",true]
[null,null,null,2,4,null,2,null,"Show Group Other Columns",true]
[null,null,null,3,5,null,3,null,"Show Group Graph Metrics",false]
[null,null,null,4,6,null,4,null,"Background Color"]
[null,null,null,5,7,null,5,null,"Background Image"]
[null,null,null,6,8,null,6,null,"Auto Layout on Open"]
[null,null,null,7,9,null,7,null,"Autofill Workbook Results","▓0▓0▓0▓True▓Black▓Black▓▓▓0▓0▓0▓0▓0▓▓0▓0▓0▓0▓0▓▓0▓0▓0▓True▓Black▓Black▓▓▓0▓0▓0▓0▓0▓▓0▓0▓0▓0▓0▓▓0▓0▓0▓0▓0▓▓0▓0▓0▓0▓0"]
[null,null,null,8,null,null,8,null,"Autofill Workbook With Scheme Results","None"]
[null,null,null,9,null,null,9]
[null,null,null,10]
[null,null,null,11]